{"text_format":"1","workbook":"xlsx","n_sheets":5,"sheets":["data","names","legan (2)","Salim","legan"],"not_rendered":{"charts":0,"images":0,"macros":1,"external_links":2,"defined_names":15,"comments":0,"pivot_tables":0},"unopened":[],"bounds":{"document_bytes":16777216,"sheet_cells":100000,"rows_first":2000,"rows_last":500,"rows_between":2000,"halvings":0,"cell_chars":16384,"cell_head_chars":4096},"cells_cut":0,"cells_raw":0,"read":"whole","date_system":"1900"}

{"sheet":"data","index":0,"n_rows":78,"n_cols":31,"rows_kept":78,"cut":false,"hidden":true,"merged":[[4,14,4,27]]}
[]
[]
[]
[]
["م","الاسم","اللغة الثانية","الشعبة","المجال","النشاط","الديانة","تخصص1","تخصص1","تخصص2","تخصص2","الفصل","الحالة","تاريخ الميلاد","مواد الرسوب",null,null,null,null,null,null,null,null,null,null,null,null,null,"مواد الرسوب","مواد رفع المجموع","معرفة المتكرر"]
[1,"احمد جمال عبد المتعال احمد","فرنسي","علمي","زراعة","زراعي","مسلم","فيزياء","كيمياء","احياء","ميكانيكا",5,"نظامي",{"$f":"DATE(IF(LEFT($M6,1)=\"2\",MID($M6,2,2),\"20\"&MID($M6,2,2)),MID($M6,4,2),MID($M6,6,2))","v":{"$error":"#VALUE!"}},null,null,null,null,null,null,"الكيمياء",null,null,null,null,null,null,null,{"$f":"O6&\",\"&P6&\",\"&Q6&\",\"&R6&\",\"&S6&\",\"&\",\"&T6&\",\"&U6&\",\"&V6&\",\"&W6&\",\"&X6&\",\"&Y6&\",\"&Z6&\",\"&AA6&\",\"&AB6","v":",,,,,,,الكيمياء,,,,,,,"},null,{"$f":"IF(AND(B6<>\"\",COUNTIF($B$6:B6,B6)=1),COUNTIF($B$6:$B$76,B6),\"\")","v":1}]
[2,"احمد عادل زكي موسي","فرنسي","علمي","زراعة","زراعي","مسلم","فيزياء","كيمياء","احياء","ميكانيكا","منازل","منازل",{"$error":"#VALUE!"},"اللغة العربية","اللغة الانجليزية","اللغة الثانية",null,"التفاضل وحساب المثلثات","الاحياء","الكيمياء",null,"الميكانيكا","المجموع الكلي","الحاسب الالي","التربية الدينية",null,"التربية المهنية",{"$f":"O7&\",\"&P7&\",\"&Q7&\",\"&R7&\",\"&S7&\",\"&\",\"&T7&\",\"&U7&\",\"&V7&\",\"&W7&\",\"&X7&\",\"&Y7&\",\"&Z7&\",\"&AA7&\",\"&AB7","v":"اللغة العربية,اللغة الانجليزية,اللغة الثانية,,التفاضل وحساب المثلثات,,الاحياء,الكيمياء,,الميكانيكا,المجموع الكلي,الحاسب الالي,التربية الدينية,,التربية المهنية"},null,{"$f":"IF(AND(B7<>\"\",COUNTIF($B$6:B7,B7)=1),COUNTIF($B$6:$B$76,B7),\"\")","v":1}]
[3,"احمد محمد سعيد احمد","الماني","علمي","زراعة","مسرح","مسلم","فيزياء","كيمياء","احياء","ميكانيكا",2,"نظامي",{"$error":"#VALUE!"},null,null,"اللغة الثانية",null,null,null,"الكيمياء","الفيزياء","الميكانيكا","المجموع الكلي",null,null,null,null,",,اللغة الثانية,,,,,الكيمياء,الفيزياء,الميكانيكا,المجموع الكلي,,,,",null,{"$f":"IF(AND(B8<>\"\",COUNTIF($B$6:B8,B8)=1),COUNTIF($B$6:$B$76,B8),\"\")","v":1}]
[4,"احمد محمد علي عثمان","الماني","علمي","زراعة","زراعي","مسلم","فيزياء","كيمياء","احياء","ميكانيكا",2,"نظامي",{"$error":"#VALUE!"},null,null,null,null,null,null,null,null,null,null,null,null,"المواطنة وحقوق الانسان",null,",,,,,,,,,,,,,المواطنة وحقوق الانسان,",null,{"$f":"IF(AND(B9<>\"\",COUNTIF($B$6:B9,B9)=1),COUNTIF($B$6:$B$76,B9),\"\")","v":1}]
[5,"اسلام محمود خميس محمود","فرنسي","علمي","زراعة","مسرح","مسلم","فيزياء","كيمياء","احياء","ميكانيكا",5,"نظامي",{"$error":"#VALUE!"},null,"اللغة الانجليزية",null,null,"التفاضل وحساب المثلثات",null,null,null,null,null,null,null,null,null,",اللغة الانجليزية,,,التفاضل وحساب المثلثات,,,,,,,,,,",null,{"$f":"IF(AND(B10<>\"\",COUNTIF($B$6:B10,B10)=1),COUNTIF($B$6:$B$76,B10),\"\")","v":1}]
[6,"السيد عثمان سيد حسين","فرنسي","علمي","زراعة","فنية","مسلم","فيزياء","كيمياء","احياء","ميكانيكا",4,"نظامي",{"$error":"#VALUE!"},null,"اللغة الانجليزية",null,null,null,null,null,"الفيزياء",null,null,null,null,null,null,",اللغة الانجليزية,,,,,,,الفيزياء,,,,,,",null,{"$f":"IF(AND(B11<>\"\",COUNTIF($B$6:B11,B11)=1),COUNTIF($B$6:$B$76,B11),\"\")","v":1}]
[7,"بيتر جمال نصيف حنا","فرنسي","علمي","زراعة","صناعي","مسيحي","فيزياء","كيمياء","احياء","ميكانيكا",1,"نظامي",{"$error":"#VALUE!"},"اللغة العربية",null,null,null,null,null,"الكيمياء",null,null,"المجموع الكلي",null,null,null,null,"اللغة العربية,,,,,,,الكيمياء,,,المجموع الكلي,,,,",null,{"$f":"IF(AND(B12<>\"\",COUNTIF($B$6:B12,B12)=1),COUNTIF($B$6:$B$76,B12),\"\")","v":1}]
[8,"بيشوي عصام كمال لمعي","فرنسي","علمي","صناعة","اذاعة","مسيحي","فيزياء","كيمياء","احياء","ميكانيكا",5,"نظامي",{"$error":"#VALUE!"},null,null,null,null,"التفاضل وحساب المثلثات",null,"الكيمياء",null,null,"المجموع الكلي",null,null,null,null,",,,,التفاضل وحساب المثلثات,,,الكيمياء,,,المجموع الكلي,,,,",null,{"$f":"IF(AND(B13<>\"\",COUNTIF($B$6:B13,B13)=1),COUNTIF($B$6:$B$76,B13),\"\")","v":1}]
[9,"حمزه عبد الاعلى عبد النبى عمر","الماني","علمي","زراعة","صحافة","مسلم","فيزياء","كيمياء","احياء","ميكانيكا",3,"نظامي",{"$error":"#VALUE!"},null,null,null,null,"التفاضل وحساب المثلثات",null,null,null,null,null,null,null,null,null,",,,,التفاضل وحساب المثلثات,,,,,,,,,,",null,{"$f":"IF(AND(B14<>\"\",COUNTIF($B$6:B14,B14)=1),COUNTIF($B$6:$B$76,B14),\"\")","v":1}]
[10,"رومانى كراس مينا منصور","الماني","علمي","صناعة","مكتبة","مسيحي","فيزياء","كيمياء","احياء","ميكانيكا",3,"نظامي",{"$f":"DATE(IF(LEFT($M6,1)=\"2\",MID($M6,2,2),\"20\"&MID($M6,2,2)),MID($M6,4,2),MID($M6,6,2))","v":{"$error":"#VALUE!"}},null,"اللغة الانجليزية",null,null,null,null,null,null,null,null,null,null,null,null,",اللغة الانجليزية,,,,,,,,,,,,,",null,{"$f":"IF(AND(B6<>\"\",COUNTIF($B$6:B6,B6)=1),COUNTIF($B$6:$B$76,B6),\"\")","v":1}]
[2,"عبد الحميد احمد عبد الحميد","فرنسي","علمي","زراعة","صحافة","مسلم","فيزياء","كيمياء","احياء","ميكانيكا","منازل","منازل",{"$f":"DATE(IF(LEFT($M16,1)=\"2\",MID($M16,2,2),\"20\"&MID($M16,2,2)),MID($M16,4,2),MID($M16,6,2))","v":{"$error":"#VALUE!"}},"اللغة العربية","اللغة الانجليزية","اللغة الثانية","الجبر","التفاضل وحساب المثلثات","الاحياء","الكيمياء","الفيزياء","الميكانيكا","المجموع الكلي","الحاسب الالي","التربية الدينية","المواطنة وحقوق الانسان","التربية المهنية","اللغة العربية,اللغة الانجليزية,اللغة الثانية,الجبر,التفاضل وحساب المثلثات,,الاحياء,الكيمياء,الفيزياء,الميكانيكا,المجموع الكلي,الحاسب الالي,التربية الدينية,المواطنة وحقوق الانسان,التربية المهنية",null,{"$f":"IF(AND(B16<>\"\",COUNTIF($B$6:B16,B16)=1),COUNTIF($B$6:$B$76,B16),\"\")","v":1}]
[12,"عبد الرحمن جابر مصطفى عليان","فرنسي","علمي","صناعة","زراعي","مسلم","فيزياء","كيمياء","احياء","ميكانيكا",5,"نظامي",{"$error":"#VALUE!"},null,null,null,null,null,null,"الكيمياء",null,null,"المجموع الكلي",null,null,null,null,",,,,,,,الكيمياء,,,المجموع الكلي,,,,",null,{"$f":"IF(AND(B17<>\"\",COUNTIF($B$6:B17,B17)=1),COUNTIF($B$6:$B$76,B17),\"\")","v":1}]
[13,"عبد الرحمن صابر توفيق عبد السلام","فرنسي","علمي","زراعة","مسرح","مسلم","فيزياء","كيمياء","احياء","ميكانيكا",5,"نظامي",{"$error":"#VALUE!"},null,null,null,"الجبر","التفاضل وحساب المثلثات",null,null,null,null,null,null,null,null,null,",,,الجبر,التفاضل وحساب المثلثات,,,,,,,,,,",null,{"$f":"IF(AND(B18<>\"\",COUNTIF($B$6:B18,B18)=1),COUNTIF($B$6:$B$76,B18),\"\")","v":1}]
[14,"عبد الرحمن محمد عبد الرحمن فراج","الماني","علمي","صناعة","صحافة","مسلم","فيزياء","كيمياء","احياء","ميكانيكا",2,"نظامي",{"$error":"#VALUE!"},null,null,null,null,null,null,null,null,null,"المجموع الكلي",null,null,null,null,",,,,,,,,,,المجموع الكلي,,,,",null,{"$f":"IF(AND(B19<>\"\",COUNTIF($B$6:B19,B19)=1),COUNTIF($B$6:$B$76,B19),\"\")","v":1}]
[15,"عبد الرحيم اشرف عبد الرحيم احمد","الماني","علمي","صناعة","فنية","مسلم","فيزياء","كيمياء","احياء","ميكانيكا",3,"نظامي",{"$error":"#VALUE!"},null,null,null,"الجبر",null,null,null,null,null,null,null,null,null,null,",,,الجبر,,,,,,,,,,,",null,{"$f":"IF(AND(B20<>\"\",COUNTIF($B$6:B20,B20)=1),COUNTIF($B$6:$B$76,B20),\"\")","v":1}]
[16,"عبد الوهاب ناصر محمد عبد الوهاب محمود","الماني","علمي","صناعة","اذاعة","مسلم","فيزياء","كيمياء","احياء","ميكانيكا",2,"نظامي",{"$error":"#VALUE!"},"اللغة العربية","اللغة الانجليزية",null,"الجبر",null,null,null,null,"الميكانيكا","المجموع الكلي",null,null,null,null,"اللغة العربية,اللغة الانجليزية,,الجبر,,,,,,الميكانيكا,المجموع الكلي,,,,",null,{"$f":"IF(AND(B21<>\"\",COUNTIF($B$6:B21,B21)=1),COUNTIF($B$6:$B$76,B21),\"\")","v":1}]
[17,"عصام عماد امام عباس","فرنسي","علمي","صناعة","مكتبة","مسلم","فيزياء","كيمياء","احياء","ميكانيكا",5,"نظامي",{"$error":"#VALUE!"},null,null,null,null,null,null,null,null,"الميكانيكا",null,null,null,null,null,",,,,,,,,,الميكانيكا,,,,,",null,{"$f":"IF(AND(B22<>\"\",COUNTIF($B$6:B22,B22)=1),COUNTIF($B$6:$B$76,B22),\"\")","v":1}]
[18,"عمر محمد توفيق محمد","الماني","علمي","صناعة","زراعي","مسلم","فيزياء","كيمياء","احياء","ميكانيكا","منازل","منازل",{"$error":"#VALUE!"},null,"اللغة الانجليزية",null,null,"التفاضل وحساب المثلثات",null,null,"الفيزياء","الميكانيكا","المجموع الكلي",null,null,"المواطنة وحقوق الانسان",null,",اللغة الانجليزية,,,التفاضل وحساب المثلثات,,,,الفيزياء,الميكانيكا,المجموع الكلي,,,المواطنة وحقوق الانسان,",null,{"$f":"IF(AND(B23<>\"\",COUNTIF($B$6:B23,B23)=1),COUNTIF($B$6:$B$76,B23),\"\")","v":1}]
[19,"فارس عمران احمد عبد الكافي","الماني","علمي","زراعة","صناعي","مسلم","فيزياء","كيمياء","احياء","ميكانيكا","منازل","منازل",{"$error":"#VALUE!"},"اللغة العربية","اللغة الانجليزية","اللغة الثانية","الجبر","التفاضل وحساب المثلثات","الاحياء","الكيمياء","الفيزياء","الميكانيكا","المجموع الكلي",null,null,null,null,"اللغة العربية,اللغة الانجليزية,اللغة الثانية,الجبر,التفاضل وحساب المثلثات,,الاحياء,الكيمياء,الفيزياء,الميكانيكا,المجموع الكلي,,,,",null,{"$f":"IF(AND(B24<>\"\",COUNTIF($B$6:B24,B24)=1),COUNTIF($B$6:$B$76,B24),\"\")","v":1}]
[20,"كريم عز الدين محمد علي","فرنسي","علمي","صناعة","مسرح","مسلم","فيزياء","كيمياء","احياء","ميكانيكا",5,"نظامي",{"$error":"#VALUE!"},null,null,null,null,"التفاضل وحساب المثلثات",null,null,null,null,null,null,null,null,null,",,,,التفاضل وحساب المثلثات,,,,,,,,,,",null,{"$f":"IF(AND(B25<>\"\",COUNTIF($B$6:B25,B25)=1),COUNTIF($B$6:$B$76,B25),\"\")","v":1}]
[21,"كيرلس جوزيف سعد عبدالله","فرنسي","علمي","زراعة","صحافة","مسيحي","فيزياء","كيمياء","احياء","ميكانيكا","منازل","منازل",{"$error":"#VALUE!"},null,null,null,"الجبر","التفاضل وحساب المثلثات",null,"الكيمياء","الفيزياء","الميكانيكا","المجموع الكلي",null,null,null,null,",,,الجبر,التفاضل وحساب المثلثات,,,الكيمياء,الفيزياء,الميكانيكا,المجموع الكلي,,,,",null,{"$f":"IF(AND(B26<>\"\",COUNTIF($B$6:B26,B26)=1),COUNTIF($B$6:$B$76,B26),\"\")","v":1}]
[22,"محمد احمد عبد الآخر محمد","فرنسي","علمي","زراعة","مكتبة","مسلم","فيزياء","كيمياء","احياء","ميكانيكا",1,"نظامي",{"$f":"DATE(IF(LEFT($M27,1)=\"2\",MID($M27,2,2),\"20\"&MID($M27,2,2)),MID($M27,4,2),MID($M27,6,2))","v":{"$error":"#VALUE!"}},null,null,null,"الجبر",null,null,null,null,null,null,null,null,null,null,",,,الجبر,,,,,,,,,,,",null,{"$f":"IF(AND(B27<>\"\",COUNTIF($B$6:B27,B27)=1),COUNTIF($B$6:$B$76,B27),\"\")","v":1}]
[23,"محمد جمال على محمد","الماني","علمي","صناعة","زراعي","مسلم","فيزياء","كيمياء","احياء","ميكانيكا",3,"نظامي",{"$error":"#VALUE!"},null,null,null,"الجبر","التفاضل وحساب المثلثات",null,"الكيمياء","الفيزياء",null,"المجموع الكلي",null,null,null,null,",,,الجبر,التفاضل وحساب المثلثات,,,الكيمياء,الفيزياء,,المجموع الكلي,,,,",null,{"$f":"IF(AND(B28<>\"\",COUNTIF($B$6:B28,B28)=1),COUNTIF($B$6:$B$76,B28),\"\")","v":1}]
[24,"محمد جمال كمال كامل","فرنسي","علمي","زراعة","مسرح","مسلم","فيزياء","كيمياء","احياء","ميكانيكا",5,"نظامي",{"$error":"#VALUE!"},null,null,null,"الجبر",null,null,null,null,null,null,null,null,null,null,",,,الجبر,,,,,,,,,,,",null,{"$f":"IF(AND(B29<>\"\",COUNTIF($B$6:B29,B29)=1),COUNTIF($B$6:$B$76,B29),\"\")","v":1}]
[25,"محمد عبد الجابر عبد الوهاب صلاح الدين","فرنسي","علمي","صناعة","صناعي","مسلم","فيزياء","كيمياء","احياء","ميكانيكا","منازل","منازل",{"$error":"#VALUE!"},null,"اللغة الانجليزية",null,null,"التفاضل وحساب المثلثات",null,"الكيمياء",null,"الميكانيكا","المجموع الكلي",null,null,null,null,",اللغة الانجليزية,,,التفاضل وحساب المثلثات,,,الكيمياء,,الميكانيكا,المجموع الكلي,,,,",null,{"$f":"IF(AND(B30<>\"\",COUNTIF($B$6:B30,B30)=1),COUNTIF($B$6:$B$76,B30),\"\")","v":1}]
[26,"محمد ناصر عبد المعطى محمد","فرنسي","علمي","زراعة","مكتبة","مسلم","فيزياء","كيمياء","احياء","ميكانيكا",5,"نظامي",{"$error":"#VALUE!"},null,null,null,null,null,null,null,null,null,null,null,null,"المواطنة وحقوق الانسان",null,",,,,,,,,,,,,,المواطنة وحقوق الانسان,",null,{"$f":"IF(AND(B31<>\"\",COUNTIF($B$6:B31,B31)=1),COUNTIF($B$6:$B$76,B31),\"\")","v":1}]
[27,"محمود ابراهيم يس احمد","فرنسي","علمي","زراعة","اذاعة","مسلم","فيزياء","كيمياء","احياء","ميكانيكا",1,"نظامي",{"$error":"#VALUE!"},null,null,null,null,null,null,null,null,null,null,null,null,"المواطنة وحقوق الانسان",null,",,,,,,,,,,,,,المواطنة وحقوق الانسان,",null,{"$f":"IF(AND(B32<>\"\",COUNTIF($B$6:B32,B32)=1),COUNTIF($B$6:$B$76,B32),\"\")","v":1}]
[28,"محمود زارع ضيف زارع","فرنسي","علمي","زراعة","مسرح","مسلم","فيزياء","كيمياء","احياء","ميكانيكا",4,"نظامي",{"$error":"#VALUE!"},null,null,null,null,"التفاضل وحساب المثلثات",null,null,null,null,null,null,null,null,null,",,,,التفاضل وحساب المثلثات,,,,,,,,,,",null,{"$f":"IF(AND(B33<>\"\",COUNTIF($B$6:B33,B33)=1),COUNTIF($B$6:$B$76,B33),\"\")","v":1}]
[29,"نادر لمعى فخرى غالى","الماني","علمي","صناعة","مكتبة","مسيحي","فيزياء","كيمياء","احياء","ميكانيكا","منازل","منازل",{"$f":"DATE(IF(LEFT($M34,1)=\"2\",MID($M34,2,2),\"20\"&MID($M34,2,2)),MID($M34,4,2),MID($M34,6,2))","v":{"$error":"#VALUE!"}},null,null,null,"الجبر","التفاضل وحساب المثلثات",null,"الكيمياء","الفيزياء",null,"المجموع الكلي",null,null,null,null,",,,الجبر,التفاضل وحساب المثلثات,,,الكيمياء,الفيزياء,,المجموع الكلي,,,,",null,{"$f":"IF(AND(B34<>\"\",COUNTIF($B$6:B34,B34)=1),COUNTIF($B$6:$B$76,B34),\"\")","v":1}]
[30,"ابانوب عاطف داود سليمان","فرنسي","ادبي","زراعة","صناعي","مسيحي","تاريخ","جغرافيا","فلسفة","علم نفس",7,"نظامي",{"$error":"#VALUE!"},null,"اللغة الانجليزية",null,null,null,null,null,null,null,null,null,null,null,null,",اللغة الانجليزية,,,,,,,,,,,,,",null,{"$f":"IF(AND(B35<>\"\",COUNTIF($B$6:B35,B35)=1),COUNTIF($B$6:$B$76,B35),\"\")","v":1}]
[31,"احمد اشرف عبد التواب توفيق","فرنسي","ادبي","زراعة","اذاعة","مسلم","تاريخ","جغرافيا","فلسفة","علم نفس",7,"نظامي",{"$error":"#VALUE!"},"اللغة العربية","اللغة الانجليزية",null,null,null,null,null,null,null,null,null,null,null,null,"اللغة العربية,اللغة الانجليزية,,,,,,,,,,,,,",null,{"$f":"IF(AND(B36<>\"\",COUNTIF($B$6:B36,B36)=1),COUNTIF($B$6:$B$76,B36),\"\")","v":1}]
[32,"احمد ايمن ابراهيم محمد","فرنسي","ادبي","صناعة","زراعي","مسلم","تاريخ","جغرافيا","فلسفة","علم نفس",7,"نظامي",{"$error":"#VALUE!"},"اللغة العربية","اللغة الانجليزية","اللغة الثانية","الجبر",null,"التاريخ",null,null,"فلسفة ومنطق","المجموع الكلي",null,null,"المواطنة وحقوق الانسان",null,"اللغة العربية,اللغة الانجليزية,اللغة الثانية,الجبر,,,التاريخ,,,فلسفة ومنطق,المجموع الكلي,,,المواطنة وحقوق الانسان,",null,{"$f":"IF(AND(B37<>\"\",COUNTIF($B$6:B37,B37)=1),COUNTIF($B$6:$B$76,B37),\"\")","v":1}]
[33,"احمد عبد القادر علي مصطفي","الماني","ادبي","زراعة","موسيقي","مسلم","تاريخ","جغرافيا","فلسفة","علم نفس","منازل","منازل",{"$error":"#VALUE!"},null,"اللغة الانجليزية","اللغة الثانية","الجبر","التفاضل وحساب المثلثات",null,null,null,"فلسفة ومنطق","المجموع الكلي",null,null,null,null,",اللغة الانجليزية,اللغة الثانية,الجبر,التفاضل وحساب المثلثات,,,,,فلسفة ومنطق,المجموع الكلي,,,,",null,{"$f":"IF(AND(B38<>\"\",COUNTIF($B$6:B38,B38)=1),COUNTIF($B$6:$B$76,B38),\"\")","v":1}]
[34,"احمد مدحت عبد الرحمن عبد الحفيظ","الماني","ادبي","زراعة","فنية","مسلم","تاريخ","جغرافيا","فلسفة","علم نفس",6,"نظامي",{"$error":"#VALUE!"},null,null,null,"الجبر",null,null,null,null,null,null,null,null,null,null,",,,الجبر,,,,,,,,,,,",null,{"$f":"IF(AND(B39<>\"\",COUNTIF($B$6:B39,B39)=1),COUNTIF($B$6:$B$76,B39),\"\")","v":1}]
[35,"احمد ناصر حمدون على","الماني","ادبي","صناعة","صحافة","مسلم","تاريخ","جغرافيا","فلسفة","علم نفس",6,"نظامي",{"$error":"#VALUE!"},null,null,"اللغة الثانية",null,null,null,null,null,null,null,null,null,null,null,",,اللغة الثانية,,,,,,,,,,,,",null,{"$f":"IF(AND(B40<>\"\",COUNTIF($B$6:B40,B40)=1),COUNTIF($B$6:$B$76,B40),\"\")","v":1}]
[36,"اسلام جمال سيد محمد","الماني","ادبي","صناعة","مسرح","مسلم","تاريخ","جغرافيا","فلسفة","علم نفس",6,"نظامي",{"$error":"#VALUE!"},null,"اللغة الانجليزية",null,null,null,null,null,null,null,null,null,null,null,null,",اللغة الانجليزية,,,,,,,,,,,,,",null,{"$f":"IF(AND(B41<>\"\",COUNTIF($B$6:B41,B41)=1),COUNTIF($B$6:$B$76,B41),\"\")","v":1}]
[37,"المعتصم بالله مصطفى احمد عبد الكريم","الماني","ادبي","زراعة","اذاعة","مسلم","تاريخ","جغرافيا","فلسفة","علم نفس",6,"نظامي",{"$error":"#VALUE!"},null,"اللغة الانجليزية",null,null,null,null,null,null,null,"المجموع الكلي",null,null,null,null,",اللغة الانجليزية,,,,,,,,,المجموع الكلي,,,,",null,{"$f":"IF(AND(B42<>\"\",COUNTIF($B$6:B42,B42)=1),COUNTIF($B$6:$B$76,B42),\"\")","v":1}]
[38,"تامر مجدى عبد العال حسن","فرنسي","ادبي","زراعة","اذاعة","مسلم","تاريخ","جغرافيا","فلسفة","علم نفس",7,"نظامي",{"$error":"#VALUE!"},null,null,null,null,null,null,null,null,"فلسفة ومنطق",null,null,null,null,null,",,,,,,,,,فلسفة ومنطق,,,,,",null,{"$f":"IF(AND(B43<>\"\",COUNTIF($B$6:B43,B43)=1),COUNTIF($B$6:$B$76,B43),\"\")","v":1}]
[39,"حسام احمد السيد محمد","الماني","ادبي","صناعة","فنية","مسلم","تاريخ","جغرافيا","فلسفة","علم نفس","منازل","منازل",{"$error":"#VALUE!"},null,"اللغة الانجليزية",null,"الجبر","التفاضل وحساب المثلثات",null,null,null,null,"المجموع الكلي",null,null,null,null,",اللغة الانجليزية,,الجبر,التفاضل وحساب المثلثات,,,,,,المجموع الكلي,,,,",null,{"$f":"IF(AND(B44<>\"\",COUNTIF($B$6:B44,B44)=1),COUNTIF($B$6:$B$76,B44),\"\")","v":1}]
[40,"حسام الدين مصطفى عبد المالك عمر","الماني","ادبي","صناعة","مسرح","مسلم","تاريخ","جغرافيا","فلسفة","علم نفس",6,"نظامي",{"$error":"#VALUE!"},"اللغة العربية","اللغة الانجليزية",null,null,"التفاضل وحساب المثلثات",null,null,null,"فلسفة ومنطق","المجموع الكلي",null,null,null,null,"اللغة العربية,اللغة الانجليزية,,,التفاضل وحساب المثلثات,,,,,فلسفة ومنطق,المجموع الكلي,,,,",null,{"$f":"IF(AND(B45<>\"\",COUNTIF($B$6:B45,B45)=1),COUNTIF($B$6:$B$76,B45),\"\")","v":1}]
[41,"حسام حسن سليمان ابراهيم","الماني","ادبي","زراعة","صحافة","مسلم","تاريخ","جغرافيا","فلسفة","علم نفس",6,"نظامي",{"$error":"#VALUE!"},null,"اللغة الانجليزية",null,null,null,null,null,null,null,"المجموع الكلي",null,null,null,null,",اللغة الانجليزية,,,,,,,,,المجموع الكلي,,,,",null,{"$f":"IF(AND(B46<>\"\",COUNTIF($B$6:B46,B46)=1),COUNTIF($B$6:$B$76,B46),\"\")","v":1}]
[42,"زياد علاء الدين عبد العال محمد","فرنسي","ادبي","صناعة","فنية","مسلم","تاريخ","جغرافيا","فلسفة","علم نفس",7,"نظامي",{"$error":"#VALUE!"},null,null,null,null,"التفاضل وحساب المثلثات",null,null,null,null,null,null,null,null,null,",,,,التفاضل وحساب المثلثات,,,,,,,,,,",null,{"$f":"IF(AND(B47<>\"\",COUNTIF($B$6:B47,B47)=1),COUNTIF($B$6:$B$76,B47),\"\")","v":1}]
[43,"عاصم محمود عبد الحكيم محمود","الماني","ادبي","زراعة","مكتبة","مسلم","تاريخ","جغرافيا","فلسفة","علم نفس",6,"نظامي",{"$error":"#VALUE!"},null,"اللغة الانجليزية",null,"الجبر","التفاضل وحساب المثلثات",null,null,null,null,"المجموع الكلي",null,null,null,null,",اللغة الانجليزية,,الجبر,التفاضل وحساب المثلثات,,,,,,المجموع الكلي,,,,",null,{"$f":"IF(AND(B48<>\"\",COUNTIF($B$6:B48,B48)=1),COUNTIF($B$6:$B$76,B48),\"\")","v":1}]
[44,"عبد الرحمن احمد محمد احمد","الماني","ادبي","صناعة","مسرح","مسلم","تاريخ","جغرافيا","فلسفة","علم نفس",6,"نظامي",{"$error":"#VALUE!"},null,"اللغة الانجليزية",null,"الجبر",null,null,null,null,null,"المجموع الكلي",null,null,null,null,",اللغة الانجليزية,,الجبر,,,,,,,المجموع الكلي,,,,",null,{"$f":"IF(AND(B49<>\"\",COUNTIF($B$6:B49,B49)=1),COUNTIF($B$6:$B$76,B49),\"\")","v":1}]
[45,"عبد الرحمن خالد شحاتة محمد","فرنسي","ادبي","صناعة","اذاعة","مسلم","تاريخ","جغرافيا","فلسفة","علم نفس",7,"نظامي",{"$error":"#VALUE!"},null,"اللغة الانجليزية",null,null,null,null,null,null,null,"المجموع الكلي",null,null,null,null,",اللغة الانجليزية,,,,,,,,,المجموع الكلي,,,,",null,{"$f":"IF(AND(B50<>\"\",COUNTIF($B$6:B50,B50)=1),COUNTIF($B$6:$B$76,B50),\"\")","v":1}]
[46,"عبد الرحمن محمود عبد الموجود احمد","فرنسي","ادبي","صناعة","زراعي","مسلم","تاريخ","جغرافيا","فلسفة","علم نفس",7,"نظامي",{"$error":"#VALUE!"},"اللغة العربية","اللغة الانجليزية",null,null,null,null,null,null,"فلسفة ومنطق","المجموع الكلي",null,null,null,null,"اللغة العربية,اللغة الانجليزية,,,,,,,,فلسفة ومنطق,المجموع الكلي,,,,",null,{"$f":"IF(AND(B51<>\"\",COUNTIF($B$6:B51,B51)=1),COUNTIF($B$6:$B$76,B51),\"\")","v":1}]
[47,"عبد الرحمن محمود عبد ربه حسن","فرنسي","ادبي","صناعة","صناعي","مسلم","تاريخ","جغرافيا","فلسفة","علم نفس",7,"نظامي",{"$error":"#VALUE!"},null,"اللغة الانجليزية",null,null,"التفاضل وحساب المثلثات",null,null,null,null,null,null,null,null,null,",اللغة الانجليزية,,,التفاضل وحساب المثلثات,,,,,,,,,,",null,{"$f":"IF(AND(B52<>\"\",COUNTIF($B$6:B52,B52)=1),COUNTIF($B$6:$B$76,B52),\"\")","v":1}]
[48,"عصام محمد عبد الوهاب على","الماني","ادبي","صناعة","مسرح","مسلم","تاريخ","جغرافيا","فلسفة","علم نفس",6,"نظامي",{"$error":"#VALUE!"},null,"اللغة الانجليزية",null,"الجبر","التفاضل وحساب المثلثات",null,null,null,null,"المجموع الكلي",null,null,null,null,",اللغة الانجليزية,,الجبر,التفاضل وحساب المثلثات,,,,,,المجموع الكلي,,,,",null,{"$f":"IF(AND(B53<>\"\",COUNTIF($B$6:B53,B53)=1),COUNTIF($B$6:$B$76,B53),\"\")","v":1}]
[49,"على عاطف على حسن","فرنسي","ادبي","صناعة","موسيقي","مسلم","تاريخ","جغرافيا","فلسفة","علم نفس",7,"نظامي",{"$error":"#VALUE!"},"اللغة العربية","اللغة الانجليزية",null,"الجبر","التفاضل وحساب المثلثات",null,null,null,"فلسفة ومنطق","المجموع الكلي",null,null,null,null,"اللغة العربية,اللغة الانجليزية,,الجبر,التفاضل وحساب المثلثات,,,,,فلسفة ومنطق,المجموع الكلي,,,,",null,{"$f":"IF(AND(B54<>\"\",COUNTIF($B$6:B54,B54)=1),COUNTIF($B$6:$B$76,B54),\"\")","v":1}]
[50,"على محمد صديق محمد","فرنسي","ادبي","صناعة","فنية","مسلم","تاريخ","جغرافيا","فلسفة","علم نفس",7,"نظامي",{"$error":"#VALUE!"},null,"اللغة الانجليزية",null,null,"التفاضل وحساب المثلثات",null,null,null,"فلسفة ومنطق","المجموع الكلي",null,null,null,null,",اللغة الانجليزية,,,التفاضل وحساب المثلثات,,,,,فلسفة ومنطق,المجموع الكلي,,,,",null,{"$f":"IF(AND(B55<>\"\",COUNTIF($B$6:B55,B55)=1),COUNTIF($B$6:$B$76,B55),\"\")","v":1}]
[51,"كامل احمد كامل محمد","فرنسي","ادبي","زراعة","مكتبة","مسلم","تاريخ","جغرافيا","فلسفة","علم نفس",7,"نظامي",{"$error":"#VALUE!"},"اللغة العربية","اللغة الانجليزية",null,"الجبر","التفاضل وحساب المثلثات",null,null,null,"فلسفة ومنطق","المجموع الكلي",null,null,null,null,"اللغة العربية,اللغة الانجليزية,,الجبر,التفاضل وحساب المثلثات,,,,,فلسفة ومنطق,المجموع الكلي,,,,",null,{"$f":"IF(AND(B56<>\"\",COUNTIF($B$6:B56,B56)=1),COUNTIF($B$6:$B$76,B56),\"\")","v":1}]
[52,"كريم حسام حسن ثابت","فرنسي","ادبي","صناعة","اذاعة","مسلم","تاريخ","جغرافيا","فلسفة","علم نفس",7,"نظامي",{"$error":"#VALUE!"},null,"اللغة الانجليزية",null,"الجبر","التفاضل وحساب المثلثات",null,null,null,"فلسفة ومنطق","المجموع الكلي",null,null,null,null,",اللغة الانجليزية,,الجبر,التفاضل وحساب المثلثات,,,,,فلسفة ومنطق,المجموع الكلي,,,,",null,{"$f":"IF(AND(B57<>\"\",COUNTIF($B$6:B57,B57)=1),COUNTIF($B$6:$B$76,B57),\"\")","v":1}]
[53,"كريم عادل عبد اللطيف محمود","الماني","ادبي","صناعة","مسرح","مسلم","تاريخ","جغرافيا","فلسفة","علم نفس","منازل","منازل",{"$error":"#VALUE!"},"اللغة العربية","اللغة الانجليزية",null,"الجبر","التفاضل وحساب المثلثات",null,null,null,"فلسفة ومنطق","المجموع الكلي",null,null,null,null,"اللغة العربية,اللغة الانجليزية,,الجبر,التفاضل وحساب المثلثات,,,,,فلسفة ومنطق,المجموع الكلي,,,,",null,{"$f":"IF(AND(B58<>\"\",COUNTIF($B$6:B58,B58)=1),COUNTIF($B$6:$B$76,B58),\"\")","v":1}]
[54,"كريم ياسر صديق محمد","الماني","ادبي","زراعة","اذاعة","مسلم","تاريخ","جغرافيا","فلسفة","علم نفس",6,"نظامي",{"$error":"#VALUE!"},"اللغة العربية","اللغة الانجليزية",null,"الجبر","التفاضل وحساب المثلثات",null,null,null,"فلسفة ومنطق",null,null,null,"المواطنة وحقوق الانسان",null,"اللغة العربية,اللغة الانجليزية,,الجبر,التفاضل وحساب المثلثات,,,,,فلسفة ومنطق,,,,المواطنة وحقوق الانسان,",null,{"$f":"IF(AND(B59<>\"\",COUNTIF($B$6:B59,B59)=1),COUNTIF($B$6:$B$76,B59),\"\")","v":1}]
[55,"كيرلس مجدى فهيم اسطس","فرنسي","ادبي","زراعة","زراعي","مسيحي","تاريخ","جغرافيا","فلسفة","علم نفس",7,"نظامي",{"$error":"#VALUE!"},null,null,null,"الجبر",null,null,null,null,null,null,null,null,null,null,",,,الجبر,,,,,,,,,,,",null,{"$f":"IF(AND(B60<>\"\",COUNTIF($B$6:B60,B60)=1),COUNTIF($B$6:$B$76,B60),\"\")","v":1}]
[56,"مارك حفظى بشرى جرجس","فرنسي","ادبي","زراعة","صناعي","مسيحي","تاريخ","جغرافيا","فلسفة","علم نفس",7,"نظامي",{"$error":"#VALUE!"},null,null,null,null,"التفاضل وحساب المثلثات",null,null,null,null,null,null,null,null,null,",,,,التفاضل وحساب المثلثات,,,,,,,,,,",null,{"$f":"IF(AND(B61<>\"\",COUNTIF($B$6:B61,B61)=1),COUNTIF($B$6:$B$76,B61),\"\")","v":1}]
[57,"محمد احمد كامل ثابت","الماني","ادبي","صناعة","مسرح","مسلم","تاريخ","جغرافيا","فلسفة","علم نفس",6,"نظامي",{"$f":"DATE(IF(LEFT($M62,1)=\"2\",MID($M62,2,2),\"20\"&MID($M62,2,2)),MID($M62,4,2),MID($M62,6,2))","v":{"$error":"#VALUE!"}},null,"اللغة الانجليزية",null,null,null,null,null,null,null,"المجموع الكلي",null,null,null,null,",اللغة الانجليزية,,,,,,,,,المجموع الكلي,,,,",null,{"$f":"IF(AND(B62<>\"\",COUNTIF($B$6:B62,B62)=1),COUNTIF($B$6:$B$76,B62),\"\")","v":1}]
[58,"محمد احمد كمال احمد","الماني","ادبي","صناعة","صحافة","مسلم","تاريخ","جغرافيا","فلسفة","علم نفس",6,"نظامي",{"$error":"#VALUE!"},null,"اللغة الانجليزية",null,null,null,null,null,null,null,null,null,null,null,null,",اللغة الانجليزية,,,,,,,,,,,,,",null,{"$f":"IF(AND(B63<>\"\",COUNTIF($B$6:B63,B63)=1),COUNTIF($B$6:$B$76,B63),\"\")","v":1}]
[59,"محمد خالد محمد ياسين","فرنسي","ادبي","صناعة","مسرح","مسلم","تاريخ","جغرافيا","فلسفة","علم نفس",7,"نظامي",{"$error":"#VALUE!"},"اللغة العربية",null,null,null,null,null,null,null,"فلسفة ومنطق",null,null,null,"المواطنة وحقوق الانسان",null,"اللغة العربية,,,,,,,,,فلسفة ومنطق,,,,المواطنة وحقوق الانسان,",null,{"$f":"IF(AND(B64<>\"\",COUNTIF($B$6:B64,B64)=1),COUNTIF($B$6:$B$76,B64),\"\")","v":1}]
[60,"محمد خميس محمد عبد المالك","فرنسي","ادبي","صناعة","مسرح","مسلم","تاريخ","جغرافيا","فلسفة","علم نفس",7,"نظامي",{"$error":"#VALUE!"},"اللغة العربية","اللغة الانجليزية",null,"الجبر",null,null,null,null,"فلسفة ومنطق","المجموع الكلي",null,null,null,null,"اللغة العربية,اللغة الانجليزية,,الجبر,,,,,,فلسفة ومنطق,المجموع الكلي,,,,",null,{"$f":"IF(AND(B65<>\"\",COUNTIF($B$6:B65,B65)=1),COUNTIF($B$6:$B$76,B65),\"\")","v":1}]
[61,"محمد سمير عبد الحميد محمد","الماني","ادبي","صناعة","صناعي","مسلم","تاريخ","جغرافيا","فلسفة","علم نفس",6,"نظامي",{"$error":"#VALUE!"},null,null,null,"الجبر",null,null,null,null,"فلسفة ومنطق","المجموع الكلي",null,null,null,null,",,,الجبر,,,,,,فلسفة ومنطق,المجموع الكلي,,,,",null,{"$f":"IF(AND(B66<>\"\",COUNTIF($B$6:B66,B66)=1),COUNTIF($B$6:$B$76,B66),\"\")","v":1}]
[62,"محمد مصطفي كامل درويش","الماني","ادبي","زراعة","موسيقي","مسلم","تاريخ","جغرافيا","فلسفة","علم نفس",6,"نظامي",{"$error":"#VALUE!"},null,"اللغة الانجليزية",null,null,null,null,null,null,null,null,null,null,null,null,",اللغة الانجليزية,,,,,,,,,,,,,",null,{"$f":"IF(AND(B67<>\"\",COUNTIF($B$6:B67,B67)=1),COUNTIF($B$6:$B$76,B67),\"\")","v":1}]
[63,"محمود اشرف ابراهيم عبد الحافظ","الماني","ادبي","صناعة","صحافة","مسلم","تاريخ","جغرافيا","فلسفة","علم نفس",6,"نظامي",{"$error":"#VALUE!"},null,"اللغة الانجليزية",null,"الجبر",null,null,null,null,null,"المجموع الكلي",null,null,null,null,",اللغة الانجليزية,,الجبر,,,,,,,المجموع الكلي,,,,",null,{"$f":"IF(AND(B68<>\"\",COUNTIF($B$6:B68,B68)=1),COUNTIF($B$6:$B$76,B68),\"\")","v":1}]
[64,"محمود عادل محمود احمد","الماني","ادبي","زراعة","موسيقي","مسلم","تاريخ","جغرافيا","فلسفة","علم نفس",6,"نظامي",{"$error":"#VALUE!"},null,"اللغة الانجليزية",null,null,null,null,null,null,null,null,null,null,null,null,",اللغة الانجليزية,,,,,,,,,,,,,",null,{"$f":"IF(AND(B69<>\"\",COUNTIF($B$6:B69,B69)=1),COUNTIF($B$6:$B$76,B69),\"\")","v":1}]
[65,"محمود عاطف محمد على","فرنسي","ادبي","صناعة","صناعي","مسلم","تاريخ","جغرافيا","فلسفة","علم نفس",7,"نظامي",{"$error":"#VALUE!"},null,"اللغة الانجليزية",null,"الجبر",null,"التاريخ",null,null,"فلسفة ومنطق","المجموع الكلي",null,null,null,null,",اللغة الانجليزية,,الجبر,,,التاريخ,,,فلسفة ومنطق,المجموع الكلي,,,,",null,{"$f":"IF(AND(B70<>\"\",COUNTIF($B$6:B70,B70)=1),COUNTIF($B$6:$B$76,B70),\"\")","v":1}]
[66,"مصطفى احمد نبيل عطية","فرنسي","ادبي","زراعة","زراعي","مسلم","تاريخ","جغرافيا","فلسفة","علم نفس",7,"نظامي",{"$error":"#VALUE!"},null,"اللغة الانجليزية",null,null,null,null,null,null,null,null,null,null,null,null,{"$f":"O71&\",\"&P71&\",\"&Q71&\",\"&R71&\",\"&S71&\",\"&\",\"&T71&\",\"&U71&\",\"&V71&\",\"&W71&\",\"&X71&\",\"&Y71&\",\"&Z71&\",\"&AA71&\",\"&AB71","v":",اللغة الانجليزية,,,,,,,,,,,,,"},null,{"$f":"IF(AND(B71<>\"\",COUNTIF($B$6:B71,B71)=1),COUNTIF($B$6:$B$76,B71),\"\")","v":1}]
[67,"مصطفى عادل نور الدين حجازى","الماني","ادبي","صناعة","مسرح","مسلم","تاريخ","جغرافيا","فلسفة","علم نفس",6,"نظامي",{"$error":"#VALUE!"},null,"اللغة الانجليزية",null,null,null,null,null,null,null,null,null,null,null,null,",اللغة الانجليزية,,,,,,,,,,,,,",null,{"$f":"IF(AND(B72<>\"\",COUNTIF($B$6:B72,B72)=1),COUNTIF($B$6:$B$76,B72),\"\")","v":1}]
[68,"مصطفى محمود على عمر","الماني","ادبي","زراعة","زراعي","مسلم","تاريخ","جغرافيا","فلسفة","علم نفس",6,"نظامي",{"$error":"#VALUE!"},null,"اللغة الانجليزية",null,null,null,null,null,null,null,null,null,null,null,null,",اللغة الانجليزية,,,,,,,,,,,,,",null,{"$f":"IF(AND(B73<>\"\",COUNTIF($B$6:B73,B73)=1),COUNTIF($B$6:$B$76,B73),\"\")","v":1}]
[69,"مينا محب ارميا عشم","فرنسي","ادبي","صناعة","صحافة","مسيحي","تاريخ","جغرافيا","فلسفة","علم نفس",7,"نظامي",{"$error":"#VALUE!"},null,null,null,"الجبر",null,null,null,null,null,null,null,null,null,null,",,,الجبر,,,,,,,,,,,",null,{"$f":"IF(AND(B74<>\"\",COUNTIF($B$6:B74,B74)=1),COUNTIF($B$6:$B$76,B74),\"\")","v":1}]
[70,"يوسف بسام محمد احمد","الماني","ادبي","زراعة","موسيقي","مسلم","تاريخ","جغرافيا","فلسفة","علم نفس",6,"نظامي",{"$error":"#VALUE!"},null,"اللغة الانجليزية",null,null,null,null,null,null,null,null,null,null,null,null,",اللغة الانجليزية,,,,,,,,,,,,,",null,{"$f":"IF(AND(B75<>\"\",COUNTIF($B$6:B75,B75)=1),COUNTIF($B$6:$B$76,B75),\"\")","v":1}]
[71,"يوسف محمود فتحى عبد الحميد","فرنسي","ادبي","صناعة","مسرح","مسلم","تاريخ","جغرافيا","فلسفة","علم نفس",7,"نظامي",{"$error":"#VALUE!"},null,"اللغة الانجليزية",null,null,null,null,null,null,null,null,null,null,null,null,",اللغة الانجليزية,,,,,,,,,,,,,",null,{"$f":"IF(AND(B76<>\"\",COUNTIF($B$6:B76,B76)=1),COUNTIF($B$6:$B$76,B76),\"\")","v":1}]
[null,null,null,null,null,null,null,null,null,null,null,null,null,null,{"$f":"COUNTIF(O6:O76,\"اللغة العربية\")","v":15},{"$f":"COUNTIF(P6:P76,\"اللغة الانجليزية\")","v":42},{"$f":"COUNTIF(Q6:Q76,\"اللغة الثانية\")","v":7},{"$f":"COUNTIF(R6:R76,\"الجبر\")","v":28},{"$f":"COUNTIF(S6:S76,\"التفاضل وحساب المثلثات\")","v":28},{"$f":"COUNTIF(T6:T76,\"الاحياء\")","v":3},{"$f":"COUNTIF(U6:U76,\"الكيمياء\")","v":12},{"$f":"COUNTIF(V6:V76,\"الفيزياء\")","v":8},{"$f":"COUNTIF(W6:W76,\"الميكانيكا\")","v":9},{"$f":"COUNTIF(X6:X76,\"المجموع الكلي\")","v":35},{"$f":"COUNTIF(Y6:Y76,\"الحاسب الالي\")","v":2},{"$f":"COUNTIF(Z6:Z76,\"التربية الدينية\")","v":2},{"$f":"COUNTIF(AA6:AA76,\"المواطنة وحقوق الانسان\")","v":8},{"$f":"COUNTIF(AB6:AB76,\"التربية المهنية\")","v":2}]
[null,null,null,null,null,null,null,null,null,null,null,null,null,null,null,null,null,null,null,{"$f":"COUNTIF(T6:T76,\"التاريخ\")","v":2},{"$f":"COUNTIF(U6:U76,\"الجغرافيا\")","v":0},{"$f":"COUNTIF(V6:V76,\"علم النفس\")","v":0},{"$f":"COUNTIF(W6:W76,\"فلسفة ومنطق\")","v":15}]

{"sheet":"names","index":1,"n_rows":101,"n_cols":39,"rows_kept":101,"cut":false,"hidden":false,"merged":[[2,19,3,23],[2,15,2,18],[2,10,3,14],[3,0,4,0],[2,1,4,1],[2,8,4,8],[2,9,4,9],[2,7,4,7],[2,6,4,6],[2,2,4,2],[2,4,4,4],[2,5,4,5],[2,34,2,37],[26,32,26,34],[27,32,27,34],[28,32,28,34],[80,3,80,6],[2,27,4,27],[80,9,80,28],[2,26,4,26],[2,3,4,3],[79,7,81,8],[79,9,79,28],[79,3,79,6],[2,24,4,24],[2,25,4,25],[2,28,4,28],[78,3,78,28]]}
[]
[]
["م","رقم الجلوس","الاسم","الفصل","اللغة الثانية","المجال","النشاط","الحالة","التخصص","الديانة","مواد الرسوب",null,null,null,null,"علمي/ادبي",null,null,null,"مواد الرسوب",null,null,null,null,"مواد الرسوب","مواد رفع المجموع","المجموعة","رقم اللجنة","مقر اللجنة",null,null,null,null,null,"الصف الثاني"]
[null,null,null,null,"اللغة الثانية","التكنولوجيا",null,null,null,null,null,null,null,null,null,"تاريخ","جغرافيا","علم نفس","فلسفة ومنطق",null,null,null,null,null,null,null,null,null,null,null,null,null,null,null,null,{"$f":"COUNT(AJ6:AJ25)","v":5}]
[null,null,null,null,null,null,null,null,null,null,"عربي","انجليزي","اللغة الثانية","الجبر","التفاضل وحساب المثلثات","الاحياء","الكيمياء","الفيزياء","الميكانيكا","المجموع الكلي","الحاسب الالي","دين","المواطنة","التربية المهنية",null,null,null,null,null,"المكرر",null,null,"م","من","إلى","العدد","المجموعة","رقم اللجنة","مقر اللجنة"]
[1,110,"احمد جمال عبد المتعال احمد",5,"فرنسي","زراعة","زراعي","نظامي","علمي","مسلم",null,null,null,null,null,null,"الكيمياء",null,null,null,null,null,null,null,",,,,,,,الكيمياء,,,,,,,","عربي انجليزي فلسفة",{"$f":"IF(C6=\"\",\"\",INDEX($AK$6:$AK$25,MATCH(AB6,$AL$6:$AL$25,0)))","v":"العلمية"},1,"1-1",{"$f":"IF(AND(C6<>\"\",COUNTIF($C$6:C6,C6)=1),COUNTIF($C$6:$C$101,C6),\"\")","v":1},null,null,1,110,186,15,"العلمية",1,"1-1"]
[2,115,"احمد عادل زكي موسي","منازل","فرنسي","زراعة","زراعي","منازل","علمي","مسلم","اللغة العربية","اللغة الانجليزية","اللغة الثانية",null,"التفاضل وحساب المثلثات","الاحياء","الكيمياء",null,"الميكانيكا","المجموع الكلي","الحاسب الالي","التربية الدينية",null,"التربية المهنية","اللغة العربية,اللغة الانجليزية,اللغة الثانية,,التفاضل وحساب المثلثات,,الاحياء,الكيمياء,,الميكانيكا,المجموع الكلي,الحاسب الالي,التربية الدينية,,التربية المهنية",null,"العلمية",1,"1-1",{"$f":"IF(AND(C7<>\"\",COUNTIF($C$6:C7,C7)=1),COUNTIF($C$6:$C$101,C7),\"\")","v":1},null,null,2,189,294,14,"العلمية",2,"2-1"]
[3,123,"احمد محمد سعيد احمد",2,"الماني","زراعة","مسرح","نظامي","علمي","مسلم",null,null,"اللغة الثانية",null,null,null,"الكيمياء","الفيزياء","الميكانيكا","المجموع الكلي",null,null,null,null,",,اللغة الثانية,,,,,الكيمياء,الفيزياء,الميكانيكا,المجموع الكلي,,,,",null,"العلمية",1,"1-1",{"$f":"IF(AND(C8<>\"\",COUNTIF($C$6:C8,C8)=1),COUNTIF($C$6:$C$101,C8),\"\")","v":1},null,null,3,305,337,14,"الادبية",3,"3-1"]
[4,125,"احمد محمد علي عثمان",2,"الماني","زراعة","زراعي","نظامي","علمي","مسلم",null,null,null,null,null,null,null,null,null,null,null,null,"المواطنة وحقوق الانسان",null,",,,,,,,,,,,,,المواطنة وحقوق الانسان,",null,"العلمية",1,"1-1",{"$f":"IF(AND(C9<>\"\",COUNTIF($C$6:C9,C9)=1),COUNTIF($C$6:$C$101,C9),\"\")","v":1},null,null,4,338,359,14,"الادبية",4,"4-1"]
[5,136,"اسلام محمود خميس محمود",5,"فرنسي","زراعة","مسرح","نظامي","علمي","مسلم",null,"اللغة الانجليزية",null,null,"التفاضل وحساب المثلثات",null,null,null,null,null,null,null,null,null,",اللغة الانجليزية,,,التفاضل وحساب المثلثات,,,,,,,,,,",null,"العلمية",1,"1-1",{"$f":"IF(AND(C10<>\"\",COUNTIF($C$6:C10,C10)=1),COUNTIF($C$6:$C$101,C10),\"\")","v":1},null,null,5,360,394,14,"الادبية",5,"5-1"]
[6,138,"السيد عثمان سيد حسين",4,"فرنسي","زراعة","فنية","نظامي","علمي","مسلم",null,"اللغة الانجليزية",null,null,null,null,null,"الفيزياء",null,null,null,null,null,null,",اللغة الانجليزية,,,,,,,الفيزياء,,,,,,",null,"العلمية",1,"1-1",{"$f":"IF(AND(C11<>\"\",COUNTIF($C$6:C11,C11)=1),COUNTIF($C$6:$C$101,C11),\"\")","v":1},null,null,6,{"$f":"IF(AJ11=\"\",\"\",AI10+1)","v":""},{"$f":"IF(AJ11=\"\",\"\",AH11+AJ11-1)","v":""}]
[7,146,"بيتر جمال نصيف حنا",1,"فرنسي","زراعة","صناعي","نظامي","علمي","مسيحي","اللغة العربية",null,null,null,null,null,"الكيمياء",null,null,"المجموع الكلي",null,null,null,null,"اللغة العربية,,,,,,,الكيمياء,,,المجموع الكلي,,,,",null,"العلمية",1,"1-1",{"$f":"IF(AND(C12<>\"\",COUNTIF($C$6:C12,C12)=1),COUNTIF($C$6:$C$101,C12),\"\")","v":1},null,null,7,"",{"$f":"IF(AJ12=\"\",\"\",AH12+AJ12)","v":""}]
[8,152,"بيشوي عصام كمال لمعي",5,"فرنسي","صناعة","اذاعة","نظامي","علمي","مسيحي",null,null,null,null,"التفاضل وحساب المثلثات",null,"الكيمياء",null,null,"المجموع الكلي",null,null,null,null,",,,,التفاضل وحساب المثلثات,,,الكيمياء,,,المجموع الكلي,,,,",null,"العلمية",1,"1-1",{"$f":"IF(AND(C13<>\"\",COUNTIF($C$6:C13,C13)=1),COUNTIF($C$6:$C$101,C13),\"\")","v":1},null,null,8,"",""]
[9,157,"حمزه عبد الاعلى عبد النبى عمر",3,"الماني","زراعة","صحافة","نظامي","علمي","مسلم",null,null,null,null,"التفاضل وحساب المثلثات",null,null,null,null,null,null,null,null,null,",,,,التفاضل وحساب المثلثات,,,,,,,,,,",null,"العلمية",1,"1-1",{"$f":"IF(AND(C14<>\"\",COUNTIF($C$6:C14,C14)=1),COUNTIF($C$6:$C$101,C14),\"\")","v":1},null,null,9,"",""]
[10,159,"رومانى كراس مينا منصور",3,"الماني","صناعة","مكتبة","نظامي","علمي","مسيحي",null,"اللغة الانجليزية",null,null,null,null,null,null,null,null,null,null,null,null,",اللغة الانجليزية,,,,,,,,,,,,,",null,"العلمية",1,"1-1",{"$f":"IF(AND(C15<>\"\",COUNTIF($C$6:C15,C15)=1),COUNTIF($C$6:$C$101,C15),\"\")","v":1},null,null,10,"",""]
[11,171,"عبد الحميد احمد عبد الحميد","منازل","فرنسي","زراعة","صحافة","منازل","علمي","مسلم","اللغة العربية","اللغة الانجليزية","اللغة الثانية","الجبر","التفاضل وحساب المثلثات","الاحياء","الكيمياء","الفيزياء","الميكانيكا","المجموع الكلي","الحاسب الالي","التربية الدينية","المواطنة وحقوق الانسان","التربية المهنية","اللغة العربية,اللغة الانجليزية,اللغة الثانية,الجبر,التفاضل وحساب المثلثات,,الاحياء,الكيمياء,الفيزياء,الميكانيكا,المجموع الكلي,الحاسب الالي,التربية الدينية,المواطنة وحقوق الانسان,التربية المهنية",null,"العلمية",1,"1-1",{"$f":"IF(AND(C16<>\"\",COUNTIF($C$6:C16,C16)=1),COUNTIF($C$6:$C$101,C16),\"\")","v":1},null,null,11,"",""]
[12,174,"عبد الرحمن جابر مصطفى عليان",5,"فرنسي","صناعة","زراعي","نظامي","علمي","مسلم",null,null,null,null,null,null,"الكيمياء",null,null,"المجموع الكلي",null,null,null,null,",,,,,,,الكيمياء,,,المجموع الكلي,,,,",null,"العلمية",1,"1-1",{"$f":"IF(AND(C17<>\"\",COUNTIF($C$6:C17,C17)=1),COUNTIF($C$6:$C$101,C17),\"\")","v":1},null,null,12,"",""]
[13,177,"عبد الرحمن صابر توفيق عبد السلام",5,"فرنسي","زراعة","مسرح","نظامي","علمي","مسلم",null,null,null,"الجبر","التفاضل وحساب المثلثات",null,null,null,null,null,null,null,null,null,",,,الجبر,التفاضل وحساب المثلثات,,,,,,,,,,",null,"العلمية",1,"1-1",{"$f":"IF(AND(C18<>\"\",COUNTIF($C$6:C18,C18)=1),COUNTIF($C$6:$C$101,C18),\"\")","v":1},null,null,13,"",""]
[14,180,"عبد الرحمن محمد عبد الرحمن فراج",2,"الماني","صناعة","صحافة","نظامي","علمي","مسلم",null,null,null,null,null,null,null,null,null,"المجموع الكلي",null,null,null,null,",,,,,,,,,,المجموع الكلي,,,,",null,"العلمية",1,"1-1",{"$f":"IF(AND(C19<>\"\",COUNTIF($C$6:C19,C19)=1),COUNTIF($C$6:$C$101,C19),\"\")","v":1},null,null,14,"",""]
[15,186,"عبد الرحيم اشرف عبد الرحيم احمد",3,"الماني","صناعة","فنية","نظامي","علمي","مسلم",null,null,null,"الجبر",null,null,null,null,null,null,null,null,null,null,",,,الجبر,,,,,,,,,,,",null,"العلمية",1,"1-1",{"$f":"IF(AND(C20<>\"\",COUNTIF($C$6:C20,C20)=1),COUNTIF($C$6:$C$101,C20),\"\")","v":1},null,null,15,"",""]
[16,189,"عبد الوهاب ناصر محمد عبد الوهاب محمود",2,"الماني","صناعة","اذاعة","نظامي","علمي","مسلم","اللغة العربية","اللغة الانجليزية",null,"الجبر",null,null,null,null,"الميكانيكا","المجموع الكلي",null,null,null,null,"اللغة العربية,اللغة الانجليزية,,الجبر,,,,,,الميكانيكا,المجموع الكلي,,,,",null,"العلمية",2,"2-1",{"$f":"IF(AND(C21<>\"\",COUNTIF($C$6:C21,C21)=1),COUNTIF($C$6:$C$101,C21),\"\")","v":1},null,null,16,"",""]
[17,194,"عصام عماد امام عباس",5,"فرنسي","صناعة","مكتبة","نظامي","علمي","مسلم",null,null,null,null,null,null,null,null,"الميكانيكا",null,null,null,null,null,",,,,,,,,,الميكانيكا,,,,,",null,"العلمية",2,"2-1",{"$f":"IF(AND(C22<>\"\",COUNTIF($C$6:C22,C22)=1),COUNTIF($C$6:$C$101,C22),\"\")","v":1},null,null,17,"",""]
[18,202,"عمر محمد توفيق محمد","منازل","الماني","صناعة","زراعي","منازل","علمي","مسلم",null,"اللغة الانجليزية",null,null,"التفاضل وحساب المثلثات",null,null,"الفيزياء","الميكانيكا","المجموع الكلي",null,null,"المواطنة وحقوق الانسان",null,",اللغة الانجليزية,,,التفاضل وحساب المثلثات,,,,الفيزياء,الميكانيكا,المجموع الكلي,,,المواطنة وحقوق الانسان,",null,"العلمية",2,"2-1",{"$f":"IF(AND(C23<>\"\",COUNTIF($C$6:C23,C23)=1),COUNTIF($C$6:$C$101,C23),\"\")","v":1},null,null,18,"",""]
[19,209,"فارس عمران احمد عبد الكافي","منازل","الماني","زراعة","صناعي","منازل","علمي","مسلم","اللغة العربية","اللغة الانجليزية","اللغة الثانية","الجبر","التفاضل وحساب المثلثات","الاحياء","الكيمياء","الفيزياء","الميكانيكا","المجموع الكلي",null,null,null,null,"اللغة العربية,اللغة الانجليزية,اللغة الثانية,الجبر,التفاضل وحساب المثلثات,,الاحياء,الكيمياء,الفيزياء,الميكانيكا,المجموع الكلي,,,,",null,"العلمية",2,"2-1",{"$f":"IF(AND(C24<>\"\",COUNTIF($C$6:C24,C24)=1),COUNTIF($C$6:$C$101,C24),\"\")","v":1},null,null,19,"",""]
[20,217,"كريم عز الدين محمد علي",5,"فرنسي","صناعة","مسرح","نظامي","علمي","مسلم",null,null,null,null,"التفاضل وحساب المثلثات",null,null,null,null,null,null,null,null,null,",,,,التفاضل وحساب المثلثات,,,,,,,,,,",null,"العلمية",2,"2-1",{"$f":"IF(AND(C25<>\"\",COUNTIF($C$6:C25,C25)=1),COUNTIF($C$6:$C$101,C25),\"\")","v":1},null,null,20,"",""]
[21,222,"كيرلس جوزيف سعد عبدالله","منازل","فرنسي","زراعة","صحافة","منازل","علمي","مسيحي",null,null,null,"الجبر","التفاضل وحساب المثلثات",null,"الكيمياء","الفيزياء","الميكانيكا","المجموع الكلي",null,null,null,null,",,,الجبر,التفاضل وحساب المثلثات,,,الكيمياء,الفيزياء,الميكانيكا,المجموع الكلي,,,,",null,"العلمية",2,"2-1",{"$f":"IF(AND(C26<>\"\",COUNTIF($C$6:C26,C26)=1),COUNTIF($C$6:$C$101,C26),\"\")","v":1}]
[22,232,"محمد احمد عبد الآخر محمد",1,"فرنسي","زراعة","مكتبة","نظامي","علمي","مسلم",null,null,null,"الجبر",null,null,null,null,null,null,null,null,null,null,",,,الجبر,,,,,,,,,,,",null,"العلمية",2,"2-1",{"$f":"IF(AND(C27<>\"\",COUNTIF($C$6:C27,C27)=1),COUNTIF($C$6:$C$101,C27),\"\")","v":1},null,null,"مجموع العلمية",null,null,{"$f":"SUMIF(AJ6:AJ25,AK6)","v":0}]
[23,242,"محمد جمال على محمد",3,"الماني","صناعة","زراعي","نظامي","علمي","مسلم",null,null,null,"الجبر","التفاضل وحساب المثلثات",null,"الكيمياء","الفيزياء",null,"المجموع الكلي",null,null,null,null,",,,الجبر,التفاضل وحساب المثلثات,,,الكيمياء,الفيزياء,,المجموع الكلي,,,,",null,"العلمية",2,"2-1",{"$f":"IF(AND(C28<>\"\",COUNTIF($C$6:C28,C28)=1),COUNTIF($C$6:$C$101,C28),\"\")","v":1},null,null,"مجموع الادبية",null,null,{"$f":"SUMIF(AJ16:AJ20,AK8)","v":0}]
[24,243,"محمد جمال كمال كامل",5,"فرنسي","زراعة","مسرح","نظامي","علمي","مسلم",null,null,null,"الجبر",null,null,null,null,null,null,null,null,null,null,",,,الجبر,,,,,,,,,,,",null,"العلمية",2,"2-1",{"$f":"IF(AND(C29<>\"\",COUNTIF($C$6:C29,C29)=1),COUNTIF($C$6:$C$101,C29),\"\")","v":1},null,null,"المجموع",null,null,{"$f":"SUM(AJ27:AJ28)","v":0}]
[25,255,"محمد عبد الجابر عبد الوهاب صلاح الدين","منازل","فرنسي","صناعة","صناعي","منازل","علمي","مسلم",null,"اللغة الانجليزية",null,null,"التفاضل وحساب المثلثات",null,"الكيمياء",null,"الميكانيكا","المجموع الكلي",null,null,null,null,",اللغة الانجليزية,,,التفاضل وحساب المثلثات,,,الكيمياء,,الميكانيكا,المجموع الكلي,,,,",null,"العلمية",2,"2-1",{"$f":"IF(AND(C30<>\"\",COUNTIF($C$6:C30,C30)=1),COUNTIF($C$6:$C$101,C30),\"\")","v":1}]
[26,270,"محمد ناصر عبد المعطى محمد",5,"فرنسي","زراعة","مكتبة","نظامي","علمي","مسلم",null,null,null,null,null,null,null,null,null,null,null,null,"المواطنة وحقوق الانسان",null,",,,,,,,,,,,,,المواطنة وحقوق الانسان,",null,"العلمية",2,"2-1",{"$f":"IF(AND(C31<>\"\",COUNTIF($C$6:C31,C31)=1),COUNTIF($C$6:$C$101,C31),\"\")","v":1}]
[27,272,"محمود ابراهيم يس احمد",1,"فرنسي","زراعة","اذاعة","نظامي","علمي","مسلم",null,null,null,null,null,null,null,null,null,null,null,null,"المواطنة وحقوق الانسان",null,",,,,,,,,,,,,,المواطنة وحقوق الانسان,",null,"العلمية",2,"2-1",{"$f":"IF(AND(C32<>\"\",COUNTIF($C$6:C32,C32)=1),COUNTIF($C$6:$C$101,C32),\"\")","v":1}]
[28,275,"محمود زارع ضيف زارع",4,"فرنسي","زراعة","مسرح","نظامي","علمي","مسلم",null,null,null,null,"التفاضل وحساب المثلثات",null,null,null,null,null,null,null,null,null,",,,,التفاضل وحساب المثلثات,,,,,,,,,,",null,"العلمية",2,"2-1",{"$f":"IF(AND(C33<>\"\",COUNTIF($C$6:C33,C33)=1),COUNTIF($C$6:$C$101,C33),\"\")","v":1}]
[29,294,"نادر لمعى فخرى غالى","منازل","الماني","صناعة","مكتبة","منازل","علمي","مسيحي",null,null,null,"الجبر","التفاضل وحساب المثلثات",null,"الكيمياء","الفيزياء",null,"المجموع الكلي",null,null,null,null,",,,الجبر,التفاضل وحساب المثلثات,,,الكيمياء,الفيزياء,,المجموع الكلي,,,,",null,"العلمية",2,"2-1",{"$f":"IF(AND(C34<>\"\",COUNTIF($C$6:C34,C34)=1),COUNTIF($C$6:$C$101,C34),\"\")","v":1}]
[30,305,"ابانوب عاطف داود سليمان",7,"فرنسي","زراعة","صناعي","نظامي","ادبي","مسيحي",null,"اللغة الانجليزية",null,null,null,null,null,null,null,null,null,null,null,null,",اللغة الانجليزية,,,,,,,,,,,,,",null,"الادبية",3,"3-1",{"$f":"IF(AND(C35<>\"\",COUNTIF($C$6:C35,C35)=1),COUNTIF($C$6:$C$101,C35),\"\")","v":1}]
[31,310,"احمد اشرف عبد التواب توفيق",7,"فرنسي","زراعة","اذاعة","نظامي","ادبي","مسلم","اللغة العربية","اللغة الانجليزية",null,null,null,null,null,null,null,null,null,null,null,null,"اللغة العربية,اللغة الانجليزية,,,,,,,,,,,,,",null,"الادبية",3,"3-1",{"$f":"IF(AND(C36<>\"\",COUNTIF($C$6:C36,C36)=1),COUNTIF($C$6:$C$101,C36),\"\")","v":1}]
[32,311,"احمد ايمن ابراهيم محمد",7,"فرنسي","صناعة","زراعي","نظامي","ادبي","مسلم","اللغة العربية","اللغة الانجليزية","اللغة الثانية","الجبر",null,"التاريخ",null,null,"فلسفة ومنطق","المجموع الكلي",null,null,"المواطنة وحقوق الانسان",null,"اللغة العربية,اللغة الانجليزية,اللغة الثانية,الجبر,,,التاريخ,,,فلسفة ومنطق,المجموع الكلي,,,المواطنة وحقوق الانسان,",null,"الادبية",3,"3-1",{"$f":"IF(AND(C37<>\"\",COUNTIF($C$6:C37,C37)=1),COUNTIF($C$6:$C$101,C37),\"\")","v":1}]
[33,315,"احمد عبد القادر علي مصطفي","منازل","الماني","زراعة","موسيقي","منازل","ادبي","مسلم",null,"اللغة الانجليزية","اللغة الثانية","الجبر","التفاضل وحساب المثلثات",null,null,null,"فلسفة ومنطق","المجموع الكلي",null,null,null,null,",اللغة الانجليزية,اللغة الثانية,الجبر,التفاضل وحساب المثلثات,,,,,فلسفة ومنطق,المجموع الكلي,,,,",null,{"$f":"IF(C38=\"\",\"\",INDEX($AK$6:$AK$25,MATCH(AB38,$AL$6:$AL$25,0)))","v":"الادبية"},3,"3-1",{"$f":"IF(AND(C38<>\"\",COUNTIF($C$6:C38,C38)=1),COUNTIF($C$6:$C$101,C38),\"\")","v":1}]
[34,318,"احمد مدحت عبد الرحمن عبد الحفيظ",6,"الماني","زراعة","فنية","نظامي","ادبي","مسلم",null,null,null,"الجبر",null,null,null,null,null,null,null,null,null,null,",,,الجبر,,,,,,,,,,,",null,"الادبية",3,"3-1",{"$f":"IF(AND(C39<>\"\",COUNTIF($C$6:C39,C39)=1),COUNTIF($C$6:$C$101,C39),\"\")","v":1}]
[35,319,"احمد ناصر حمدون على",6,"الماني","صناعة","صحافة","نظامي","ادبي","مسلم",null,null,"اللغة الثانية",null,null,null,null,null,null,null,null,null,null,null,",,اللغة الثانية,,,,,,,,,,,,",null,"الادبية",3,"3-1",{"$f":"IF(AND(C40<>\"\",COUNTIF($C$6:C40,C40)=1),COUNTIF($C$6:$C$101,C40),\"\")","v":1}]
[36,322,"اسلام جمال سيد محمد",6,"الماني","صناعة","مسرح","نظامي","ادبي","مسلم",null,"اللغة الانجليزية",null,null,null,null,null,null,null,null,null,null,null,null,",اللغة الانجليزية,,,,,,,,,,,,,",null,"الادبية",3,"3-1",{"$f":"IF(AND(C41<>\"\",COUNTIF($C$6:C41,C41)=1),COUNTIF($C$6:$C$101,C41),\"\")","v":1}]
[37,323,"المعتصم بالله مصطفى احمد عبد الكريم",6,"الماني","زراعة","اذاعة","نظامي","ادبي","مسلم",null,"اللغة الانجليزية",null,null,null,null,null,null,null,"المجموع الكلي",null,null,null,null,",اللغة الانجليزية,,,,,,,,,المجموع الكلي,,,,",null,"الادبية",3,"3-1",{"$f":"IF(AND(C42<>\"\",COUNTIF($C$6:C42,C42)=1),COUNTIF($C$6:$C$101,C42),\"\")","v":1}]
[38,326,"تامر مجدى عبد العال حسن",7,"فرنسي","زراعة","اذاعة","نظامي","ادبي","مسلم",null,null,null,null,null,null,null,null,"فلسفة ومنطق",null,null,null,null,null,",,,,,,,,,فلسفة ومنطق,,,,,",null,"الادبية",3,"3-1",{"$f":"IF(AND(C43<>\"\",COUNTIF($C$6:C43,C43)=1),COUNTIF($C$6:$C$101,C43),\"\")","v":1}]
[39,328,"حسام احمد السيد محمد","منازل","الماني","صناعة","فنية","منازل","ادبي","مسلم",null,"اللغة الانجليزية",null,"الجبر","التفاضل وحساب المثلثات",null,null,null,null,"المجموع الكلي",null,null,null,null,",اللغة الانجليزية,,الجبر,التفاضل وحساب المثلثات,,,,,,المجموع الكلي,,,,",null,"الادبية",3,"3-1",{"$f":"IF(AND(C44<>\"\",COUNTIF($C$6:C44,C44)=1),COUNTIF($C$6:$C$101,C44),\"\")","v":1}]
[40,329,"حسام الدين مصطفى عبد المالك عمر",6,"الماني","صناعة","مسرح","نظامي","ادبي","مسلم","اللغة العربية","اللغة الانجليزية",null,null,"التفاضل وحساب المثلثات",null,null,null,"فلسفة ومنطق","المجموع الكلي",null,null,null,null,"اللغة العربية,اللغة الانجليزية,,,التفاضل وحساب المثلثات,,,,,فلسفة ومنطق,المجموع الكلي,,,,",null,"الادبية",3,"3-1",{"$f":"IF(AND(C45<>\"\",COUNTIF($C$6:C45,C45)=1),COUNTIF($C$6:$C$101,C45),\"\")","v":1}]
[41,330,"حسام حسن سليمان ابراهيم",6,"الماني","زراعة","صحافة","نظامي","ادبي","مسلم",null,"اللغة الانجليزية",null,null,null,null,null,null,null,"المجموع الكلي",null,null,null,null,",اللغة الانجليزية,,,,,,,,,المجموع الكلي,,,,",null,"الادبية",3,"3-1",{"$f":"IF(AND(C46<>\"\",COUNTIF($C$6:C46,C46)=1),COUNTIF($C$6:$C$101,C46),\"\")","v":1}]
[42,333,"زياد علاء الدين عبد العال محمد",7,"فرنسي","صناعة","فنية","نظامي","ادبي","مسلم",null,null,null,null,"التفاضل وحساب المثلثات",null,null,null,null,null,null,null,null,null,",,,,التفاضل وحساب المثلثات,,,,,,,,,,",null,"الادبية",3,"3-1",{"$f":"IF(AND(C47<>\"\",COUNTIF($C$6:C47,C47)=1),COUNTIF($C$6:$C$101,C47),\"\")","v":1}]
[43,337,"عاصم محمود عبد الحكيم محمود",6,"الماني","زراعة","مكتبة","نظامي","ادبي","مسلم",null,"اللغة الانجليزية",null,"الجبر","التفاضل وحساب المثلثات",null,null,null,null,"المجموع الكلي",null,null,null,null,",اللغة الانجليزية,,الجبر,التفاضل وحساب المثلثات,,,,,,المجموع الكلي,,,,",null,"الادبية",3,"3-1",{"$f":"IF(AND(C48<>\"\",COUNTIF($C$6:C48,C48)=1),COUNTIF($C$6:$C$101,C48),\"\")","v":1}]
[44,338,"عبد الرحمن احمد محمد احمد",6,"الماني","صناعة","مسرح","نظامي","ادبي","مسلم",null,"اللغة الانجليزية",null,"الجبر",null,null,null,null,null,"المجموع الكلي",null,null,null,null,",اللغة الانجليزية,,الجبر,,,,,,,المجموع الكلي,,,,",null,"الادبية",4,"4-1",{"$f":"IF(AND(C49<>\"\",COUNTIF($C$6:C49,C49)=1),COUNTIF($C$6:$C$101,C49),\"\")","v":1}]
[45,340,"عبد الرحمن خالد شحاتة محمد",7,"فرنسي","صناعة","اذاعة","نظامي","ادبي","مسلم",null,"اللغة الانجليزية",null,null,null,null,null,null,null,"المجموع الكلي",null,null,null,null,",اللغة الانجليزية,,,,,,,,,المجموع الكلي,,,,",null,"الادبية",4,"4-1",{"$f":"IF(AND(C50<>\"\",COUNTIF($C$6:C50,C50)=1),COUNTIF($C$6:$C$101,C50),\"\")","v":1}]
[46,341,"عبد الرحمن محمود عبد الموجود احمد",7,"فرنسي","صناعة","زراعي","نظامي","ادبي","مسلم","اللغة العربية","اللغة الانجليزية",null,null,null,null,null,null,"فلسفة ومنطق","المجموع الكلي",null,null,null,null,"اللغة العربية,اللغة الانجليزية,,,,,,,,فلسفة ومنطق,المجموع الكلي,,,,",null,"الادبية",4,"4-1",{"$f":"IF(AND(C51<>\"\",COUNTIF($C$6:C51,C51)=1),COUNTIF($C$6:$C$101,C51),\"\")","v":1}]
[47,342,"عبد الرحمن محمود عبد ربه حسن",7,"فرنسي","صناعة","صناعي","نظامي","ادبي","مسلم",null,"اللغة الانجليزية",null,null,"التفاضل وحساب المثلثات",null,null,null,null,null,null,null,null,null,",اللغة الانجليزية,,,التفاضل وحساب المثلثات,,,,,,,,,,",null,"الادبية",4,"4-1",{"$f":"IF(AND(C52<>\"\",COUNTIF($C$6:C52,C52)=1),COUNTIF($C$6:$C$101,C52),\"\")","v":1}]
[48,346,"عصام محمد عبد الوهاب على",6,"الماني","صناعة","مسرح","نظامي","ادبي","مسلم",null,"اللغة الانجليزية",null,"الجبر","التفاضل وحساب المثلثات",null,null,null,null,"المجموع الكلي",null,null,null,null,",اللغة الانجليزية,,الجبر,التفاضل وحساب المثلثات,,,,,,المجموع الكلي,,,,",null,"الادبية",4,"4-1",{"$f":"IF(AND(C53<>\"\",COUNTIF($C$6:C53,C53)=1),COUNTIF($C$6:$C$101,C53),\"\")","v":1}]
[49,348,"على عاطف على حسن",7,"فرنسي","صناعة","موسيقي","نظامي","ادبي","مسلم","اللغة العربية","اللغة الانجليزية",null,"الجبر","التفاضل وحساب المثلثات",null,null,null,"فلسفة ومنطق","المجموع الكلي",null,null,null,null,"اللغة العربية,اللغة الانجليزية,,الجبر,التفاضل وحساب المثلثات,,,,,فلسفة ومنطق,المجموع الكلي,,,,",null,"الادبية",4,"4-1",{"$f":"IF(AND(C54<>\"\",COUNTIF($C$6:C54,C54)=1),COUNTIF($C$6:$C$101,C54),\"\")","v":1}]
[50,349,"على محمد صديق محمد",7,"فرنسي","صناعة","فنية","نظامي","ادبي","مسلم",null,"اللغة الانجليزية",null,null,"التفاضل وحساب المثلثات",null,null,null,"فلسفة ومنطق","المجموع الكلي",null,null,null,null,",اللغة الانجليزية,,,التفاضل وحساب المثلثات,,,,,فلسفة ومنطق,المجموع الكلي,,,,",null,"الادبية",4,"4-1",{"$f":"IF(AND(C55<>\"\",COUNTIF($C$6:C55,C55)=1),COUNTIF($C$6:$C$101,C55),\"\")","v":1}]
[51,350,"كامل احمد كامل محمد",7,"فرنسي","زراعة","مكتبة","نظامي","ادبي","مسلم","اللغة العربية","اللغة الانجليزية",null,"الجبر","التفاضل وحساب المثلثات",null,null,null,"فلسفة ومنطق","المجموع الكلي",null,null,null,null,"اللغة العربية,اللغة الانجليزية,,الجبر,التفاضل وحساب المثلثات,,,,,فلسفة ومنطق,المجموع الكلي,,,,",null,"الادبية",4,"4-1",{"$f":"IF(AND(C56<>\"\",COUNTIF($C$6:C56,C56)=1),COUNTIF($C$6:$C$101,C56),\"\")","v":1}]
[52,351,"كريم حسام حسن ثابت",7,"فرنسي","صناعة","اذاعة","نظامي","ادبي","مسلم",null,"اللغة الانجليزية",null,"الجبر","التفاضل وحساب المثلثات",null,null,null,"فلسفة ومنطق","المجموع الكلي",null,null,null,null,",اللغة الانجليزية,,الجبر,التفاضل وحساب المثلثات,,,,,فلسفة ومنطق,المجموع الكلي,,,,",null,"الادبية",4,"4-1",{"$f":"IF(AND(C57<>\"\",COUNTIF($C$6:C57,C57)=1),COUNTIF($C$6:$C$101,C57),\"\")","v":1}]
[53,352,"كريم عادل عبد اللطيف محمود","منازل","الماني","صناعة","مسرح","منازل","ادبي","مسلم","اللغة العربية","اللغة الانجليزية",null,"الجبر","التفاضل وحساب المثلثات",null,null,null,"فلسفة ومنطق","المجموع الكلي",null,null,null,null,"اللغة العربية,اللغة الانجليزية,,الجبر,التفاضل وحساب المثلثات,,,,,فلسفة ومنطق,المجموع الكلي,,,,",null,"الادبية",4,"4-1",{"$f":"IF(AND(C58<>\"\",COUNTIF($C$6:C58,C58)=1),COUNTIF($C$6:$C$101,C58),\"\")","v":1}]
[54,353,"كريم ياسر صديق محمد",6,"الماني","زراعة","اذاعة","نظامي","ادبي","مسلم","اللغة العربية","اللغة الانجليزية",null,"الجبر","التفاضل وحساب المثلثات",null,null,null,"فلسفة ومنطق",null,null,null,"المواطنة وحقوق الانسان",null,"اللغة العربية,اللغة الانجليزية,,الجبر,التفاضل وحساب المثلثات,,,,,فلسفة ومنطق,,,,المواطنة وحقوق الانسان,",null,"الادبية",4,"4-1",{"$f":"IF(AND(C59<>\"\",COUNTIF($C$6:C59,C59)=1),COUNTIF($C$6:$C$101,C59),\"\")","v":1}]
[55,354,"كيرلس مجدى فهيم اسطس",7,"فرنسي","زراعة","زراعي","نظامي","ادبي","مسيحي",null,null,null,"الجبر",null,null,null,null,null,null,null,null,null,null,",,,الجبر,,,,,,,,,,,",null,"الادبية",4,"4-1",{"$f":"IF(AND(C60<>\"\",COUNTIF($C$6:C60,C60)=1),COUNTIF($C$6:$C$101,C60),\"\")","v":1}]
[56,356,"مارك حفظى بشرى جرجس",7,"فرنسي","زراعة","صناعي","نظامي","ادبي","مسيحي",null,null,null,null,"التفاضل وحساب المثلثات",null,null,null,null,null,null,null,null,null,",,,,التفاضل وحساب المثلثات,,,,,,,,,,",null,"الادبية",4,"4-1",{"$f":"IF(AND(C61<>\"\",COUNTIF($C$6:C61,C61)=1),COUNTIF($C$6:$C$101,C61),\"\")","v":1}]
[57,359,"محمد احمد كامل ثابت",6,"الماني","صناعة","مسرح","نظامي","ادبي","مسلم",null,"اللغة الانجليزية",null,null,null,null,null,null,null,"المجموع الكلي",null,null,null,null,",اللغة الانجليزية,,,,,,,,,المجموع الكلي,,,,",null,"الادبية",4,"4-1",{"$f":"IF(AND(C62<>\"\",COUNTIF($C$6:C62,C62)=1),COUNTIF($C$6:$C$101,C62),\"\")","v":1}]
[58,360,"محمد احمد كمال احمد",6,"الماني","صناعة","صحافة","نظامي","ادبي","مسلم",null,"اللغة الانجليزية",null,null,null,null,null,null,null,null,null,null,null,null,",اللغة الانجليزية,,,,,,,,,,,,,",null,"الادبية",5,"5-1",{"$f":"IF(AND(C63<>\"\",COUNTIF($C$6:C63,C63)=1),COUNTIF($C$6:$C$101,C63),\"\")","v":1}]
[59,362,"محمد خالد محمد ياسين",7,"فرنسي","صناعة","مسرح","نظامي","ادبي","مسلم","اللغة العربية",null,null,null,null,null,null,null,"فلسفة ومنطق",null,null,null,"المواطنة وحقوق الانسان",null,"اللغة العربية,,,,,,,,,فلسفة ومنطق,,,,المواطنة وحقوق الانسان,",null,"الادبية",5,"5-1",{"$f":"IF(AND(C64<>\"\",COUNTIF($C$6:C64,C64)=1),COUNTIF($C$6:$C$101,C64),\"\")","v":1}]
[60,363,"محمد خميس محمد عبد المالك",7,"فرنسي","صناعة","مسرح","نظامي","ادبي","مسلم","اللغة العربية","اللغة الانجليزية",null,"الجبر",null,null,null,null,"فلسفة ومنطق","المجموع الكلي",null,null,null,null,"اللغة العربية,اللغة الانجليزية,,الجبر,,,,,,فلسفة ومنطق,المجموع الكلي,,,,",null,"الادبية",5,"5-1",{"$f":"IF(AND(C65<>\"\",COUNTIF($C$6:C65,C65)=1),COUNTIF($C$6:$C$101,C65),\"\")","v":1}]
[61,365,"محمد سمير عبد الحميد محمد",6,"الماني","صناعة","صناعي","نظامي","ادبي","مسلم",null,null,null,"الجبر",null,null,null,null,"فلسفة ومنطق","المجموع الكلي",null,null,null,null,",,,الجبر,,,,,,فلسفة ومنطق,المجموع الكلي,,,,",null,"الادبية",5,"5-1",{"$f":"IF(AND(C66<>\"\",COUNTIF($C$6:C66,C66)=1),COUNTIF($C$6:$C$101,C66),\"\")","v":1}]
[62,368,"محمد مصطفي كامل درويش",6,"الماني","زراعة","موسيقي","نظامي","ادبي","مسلم",null,"اللغة الانجليزية",null,null,null,null,null,null,null,null,null,null,null,null,",اللغة الانجليزية,,,,,,,,,,,,,",null,"الادبية",5,"5-1",{"$f":"IF(AND(C67<>\"\",COUNTIF($C$6:C67,C67)=1),COUNTIF($C$6:$C$101,C67),\"\")","v":1}]
[63,371,"محمود اشرف ابراهيم عبد الحافظ",6,"الماني","صناعة","صحافة","نظامي","ادبي","مسلم",null,"اللغة الانجليزية",null,"الجبر",null,null,null,null,null,"المجموع الكلي",null,null,null,null,",اللغة الانجليزية,,الجبر,,,,,,,المجموع الكلي,,,,",null,"الادبية",5,"5-1",{"$f":"IF(AND(C68<>\"\",COUNTIF($C$6:C68,C68)=1),COUNTIF($C$6:$C$101,C68),\"\")","v":1}]
[64,373,"محمود عادل محمود احمد",6,"الماني","زراعة","موسيقي","نظامي","ادبي","مسلم",null,"اللغة الانجليزية",null,null,null,null,null,null,null,null,null,null,null,null,",اللغة الانجليزية,,,,,,,,,,,,,",null,"الادبية",5,"5-1",{"$f":"IF(AND(C69<>\"\",COUNTIF($C$6:C69,C69)=1),COUNTIF($C$6:$C$101,C69),\"\")","v":1}]
[65,374,"محمود عاطف محمد على",7,"فرنسي","صناعة","صناعي","نظامي","ادبي","مسلم",null,"اللغة الانجليزية",null,"الجبر",null,"التاريخ",null,null,"فلسفة ومنطق","المجموع الكلي",null,null,null,null,",اللغة الانجليزية,,الجبر,,,التاريخ,,,فلسفة ومنطق,المجموع الكلي,,,,",null,{"$f":"IF(C70=\"\",\"\",INDEX($AK$6:$AK$25,MATCH(AB70,$AL$6:$AL$25,0)))","v":"الادبية"},5,"5-1",{"$f":"IF(AND(C70<>\"\",COUNTIF($C$6:C70,C70)=1),COUNTIF($C$6:$C$101,C70),\"\")","v":1}]
[66,377,"مصطفى احمد نبيل عطية",7,"فرنسي","زراعة","زراعي","نظامي","ادبي","مسلم",null,"اللغة الانجليزية",null,null,null,null,null,null,null,null,null,null,null,null,",اللغة الانجليزية,,,,,,,,,,,,,",null,"الادبية",5,"5-1",{"$f":"IF(AND(C71<>\"\",COUNTIF($C$6:C71,C71)=1),COUNTIF($C$6:$C$101,C71),\"\")","v":1}]
[67,380,"مصطفى عادل نور الدين حجازى",6,"الماني","صناعة","مسرح","نظامي","ادبي","مسلم",null,"اللغة الانجليزية",null,null,null,null,null,null,null,null,null,null,null,null,",اللغة الانجليزية,,,,,,,,,,,,,",null,"الادبية",5,"5-1",{"$f":"IF(AND(C72<>\"\",COUNTIF($C$6:C72,C72)=1),COUNTIF($C$6:$C$101,C72),\"\")","v":1}]
[68,382,"مصطفى محمود على عمر",6,"الماني","زراعة","زراعي","نظامي","ادبي","مسلم",null,"اللغة الانجليزية",null,null,null,null,null,null,null,null,null,null,null,null,",اللغة الانجليزية,,,,,,,,,,,,,",null,"الادبية",5,"5-1",{"$f":"IF(AND(C73<>\"\",COUNTIF($C$6:C73,C73)=1),COUNTIF($C$6:$C$101,C73),\"\")","v":1}]
[69,385,"مينا محب ارميا عشم",7,"فرنسي","صناعة","صحافة","نظامي","ادبي","مسيحي",null,null,null,"الجبر",null,null,null,null,null,null,null,null,null,null,",,,الجبر,,,,,,,,,,,",null,"الادبية",5,"5-1",{"$f":"IF(AND(C74<>\"\",COUNTIF($C$6:C74,C74)=1),COUNTIF($C$6:$C$101,C74),\"\")","v":1}]
[70,390,"يوسف بسام محمد احمد",6,"الماني","زراعة","موسيقي","نظامي","ادبي","مسلم",null,"اللغة الانجليزية",null,null,null,null,null,null,null,null,null,null,null,null,",اللغة الانجليزية,,,,,,,,,,,,,",null,"الادبية",5,"5-1",{"$f":"IF(AND(C75<>\"\",COUNTIF($C$6:C75,C75)=1),COUNTIF($C$6:$C$101,C75),\"\")","v":1}]
[71,394,"يوسف محمود فتحى عبد الحميد",7,"فرنسي","صناعة","مسرح","نظامي","ادبي","مسلم",null,"اللغة الانجليزية",null,null,null,null,null,null,null,null,null,null,null,null,",اللغة الانجليزية,,,,,,,,,,,,,",null,"الادبية",5,"5-1",{"$f":"IF(AND(C76<>\"\",COUNTIF($C$6:C76,C76)=1),COUNTIF($C$6:$C$101,C76),\"\")","v":1}]
[]
[]
[null,null,null,"بيانات طلاب الصف الثاني"]
[null,null,null,"بيانات الطلبة النظامي",null,null,null,71,null,"بيانات الطلبة المنازل"]
[null,null,null,61,null,null,null,null,null,10]
[null,null,null,"علمي",22,"ادبي",39,null,null,"علمي",null,null,null,null,null,null,null,null,null,null,null,null,null,null,null,null,7,"ادبي",3]
[null,null,null,"فرنسي كلي",{"$f":"COUNTIF(names!E6:E76,\"فرنسي\")-4","v":34},"الماني كلي",{"$f":"COUNTIF(names!E6:E76,\"الماني\")-6","v":27},{"$f":"SUM(E83+G83)","v":61},"فرنسي كلي",{"$f":"SUMPRODUCT((names!$E$6:$E$76=\"فرنسي\")*(names!$D$6:$D$76=\"منازل\"))","v":4},null,null,null,null,null,null,null,null,null,null,null,null,null,null,null,null,"الماني كلي",{"$f":"SUMPRODUCT((names!$E$6:$E$76=\"الماني\")*(names!$D$6:$D$76=\"منازل\"))","v":6},{"$f":"SUM(J83+AB83)","v":10}]
[null,null,null,"فرنسي مسيحي",{"$f":"SUMPRODUCT((names!$E$6:$E$76=\"فرنسي\")*(names!$J$6:$J$76=\"مسيحي\"))-1","v":6},"الماني مسيحي",{"$f":"SUMPRODUCT((names!$E$6:$E$76=\"الماني\")*(names!$J$6:$J$76=\"مسيحي\"))-1","v":1},{"$f":"SUM(E84+G84)","v":7},"فرنسي مسيحي",{"$f":"SUMPRODUCT((names!$E$6:$E$76=\"فرنسي\")*(names!$J$6:$J$76=\"مسيحي\")*(names!$D$6:$D$76=\"منازل\"))","v":1},null,null,null,null,null,null,null,null,null,null,null,null,null,null,null,null,"الماني مسيحي",{"$f":"SUMPRODUCT((names!$E$6:$E$76=\"الماني\")*(names!$J$6:$J$76=\"مسيحي\")*(names!$D$6:$D$76=\"منازل\"))","v":1},{"$f":"SUM(J84+AB84)","v":2}]
[null,null,null,"فرنسي مسلم",{"$f":"SUMPRODUCT((names!$E$6:$E$76=\"فرنسي\")*(names!$J$6:$J$76=\"مسلم\"))-3","v":28},"الماني مسلم",{"$f":"SUMPRODUCT((names!$E$6:$E$76=\"الماني\")*(names!$J$6:$J$76=\"مسلم\"))-5","v":26},{"$f":"SUM(E85+G85)","v":54},"فرنسي مسلم",{"$f":"SUMPRODUCT((names!$E$6:$E$76=\"فرنسي\")*(names!$J$6:$J$76=\"مسلم\")*(names!$D$6:$D$76=\"منازل\"))","v":3},null,null,null,null,null,null,null,null,null,null,null,null,null,null,null,null,"الماني مسلم",{"$f":"SUMPRODUCT((names!$E$6:$E$76=\"الماني\")*(names!$J$6:$J$76=\"مسلم\")*(names!$D$6:$D$76=\"منازل\"))","v":5},{"$f":"SUM(J85+AB85)","v":8}]
[null,null,null,"المجموع الكلي",{"$f":"SUM(E84:E85)","v":34},"المجموع الكلي",{"$f":"SUM(G84:G85)","v":27},{"$f":"G86+E86","v":61},"المجموع الكلي",{"$f":"SUM(J84:J85)","v":4},null,null,null,null,null,null,null,null,null,null,null,null,null,null,null,null,"المجموع الكلي",{"$f":"SUM(AB84:AB85)","v":6},{"$f":"AB86+J86","v":10}]
[null,null,null,"فرنسي ادبي",{"$f":"SUMPRODUCT((names!$E$6:$E$76=\"فرنسي\")*(names!$I$6:$I$76=\"ادبي\"))","v":20},"الماني أدبي",{"$f":"SUMPRODUCT((names!$E$6:$E$76=\"الماني\")*(names!$I$6:$IV$76=\"ادبي\"))-3","v":19},39,"فرنسي ادبي",{"$f":"SUMPRODUCT((names!$E$6:$E$76=\"فرنسي\")*(names!$I$6:$I$76=\"ادبي\")*(names!$D$6:$D$76=\"منازل\"))","v":0},null,null,null,null,null,null,null,null,null,null,null,null,null,null,null,null,"الماني علمي",{"$f":"SUMPRODUCT((names!$E$6:$E$76=\"الماني\")*(names!$I$6:$IV$76=\"علمي\")*(names!$D$6:$D$76=\"منازل\"))","v":3},3]
[null,null,null,"فرنسي علمي",{"$f":"SUMPRODUCT((names!$E$6:$E$76=\"فرنسي\")*(names!$I$6:$I$76=\"علمي\"))-4","v":14},"الماني علمي",{"$f":"SUMPRODUCT((names!$E$6:$E$76=\"الماني\")*(names!$I$6:$I$76=\"علمي\"))-3","v":8},22,"فرنسي علمي",{"$f":"SUMPRODUCT((names!$E$6:$E$76=\"فرنسي\")*(names!$I$6:$I$76=\"علمي\")*(names!$D$6:$D$76=\"منازل\"))","v":4},null,null,null,null,null,null,null,null,null,null,null,null,null,null,null,null,"الماني ادبي",{"$f":"SUMPRODUCT((names!$E$6:$E$76=\"الماني\")*(names!$I$6:$I$76=\"ادبي\")*(names!$D$6:$D$76=\"منازل\"))","v":3},7]
[null,null,null,"المجموع الكلي",{"$f":"SUM(E87:E88)","v":34},"المجموع الكلي",{"$f":"SUM(G87:G88)","v":27},61,"المجموع الكلي",{"$f":"SUM(J87:J88)","v":4},null,null,null,null,null,null,null,null,null,null,null,null,null,null,null,null,"المجموع الكلي",{"$f":"SUM(AB87:AB88)","v":6},10]
[null,null,null,"مسيحي كلي",{"$f":"COUNTIF(names!J6:J76,\"مسيحي\")-2","v":7},"مسلم كلي",{"$f":"COUNTIF(names!J2:J76,\"مسلم\")-8","v":54},61,"مسيحي كلي",{"$f":"SUMPRODUCT((names!$J$6:$J$76=\"مسيحي\")*(names!$D$6:$D$76=\"منازل\"))","v":2},null,null,null,null,null,null,null,null,null,null,null,null,null,null,null,null,"مسلم كلي",{"$f":"SUMPRODUCT((names!$J$6:$J$76=\"مسلم\")*(names!$D$6:$D$76=\"منازل\"))","v":8},10]
[null,null,null,"مسيحي ادبي",{"$f":"SUMPRODUCT((names!$I$6:$I$76=\"ادبي\")*(names!$J$6:$J$76=\"مسيحي\"))","v":4},"مسلم ادبي",{"$f":"SUMPRODUCT((names!$I$6:$I$76=\"ادبي\")*(names!$J$6:$J$76=\"مسلم\"))-3","v":35},39,"مسيحي ادبي",{"$f":"SUMPRODUCT((names!$I$6:$I$76=\"ادبي\")*(names!$J$6:$J$76=\"مسيحي\")*(names!$D$6:$D$76=\"منازل\"))","v":0},null,null,null,null,null,null,null,null,null,null,null,null,null,null,null,null,"مسلم ادبي",{"$f":"SUMPRODUCT((names!$I$6:$I$76=\"ادبي\")*(names!$J$6:$J$76=\"مسلم\")*(names!$D$6:$D$76=\"منازل\"))","v":3},3]
[null,null,null,"مسيحي علمي",{"$f":"SUMPRODUCT((names!$I$6:$I$76=\"علمي\")*(names!$J$6:$J$76=\"مسيحي\"))-2","v":3},"مسلم علمي",{"$f":"SUMPRODUCT((names!$I$6:$I$76=\"علمي\")*(names!$J$6:$J$76=\"مسلم\"))-5","v":19},22,"مسيحي علمي",{"$f":"SUMPRODUCT((names!$I$6:$I$76=\"علمي\")*(names!$J$6:$J$76=\"مسيحي\")*(names!$D$6:$D$76=\"منازل\"))","v":2},null,null,null,null,null,null,null,null,null,null,null,null,null,null,null,null,"مسلم علمي",{"$f":"SUMPRODUCT((names!$I$6:$I$76=\"علمي\")*(names!$J$6:$J$76=\"مسلم\")*(names!$D$6:$D$76=\"منازل\"))","v":5},7]
[null,null,null,"المجموع الكلي",{"$f":"SUM(E91:E92)","v":7},"المجموع الكلي",{"$f":"SUM(G91:G92)","v":54},61,"المجموع الكلي",{"$f":"SUM(J91:J92)","v":2},null,null,null,null,null,null,null,null,null,null,null,null,null,null,null,null,"المجموع الكلي",{"$f":"SUM(AB91:AB92)","v":8},10]
[null,null,null,"زراعي",{"$f":"COUNTIF(names!F6:F76,\"زراعة\")-5","v":29},"صناعي",{"$f":"COUNTIF(names!F6:F76,\"صناعة\")-5","v":32},{"$f":"G94+E94","v":61},"زراعي",{"$f":"SUMPRODUCT((names!$F$6:$F$76=\"زراعة\")*(names!$D$6:$D$76=\"منازل\"))","v":5},null,null,null,null,null,null,null,null,null,null,null,null,null,null,null,null,"صناعي",{"$f":"SUMPRODUCT((names!$F$6:$F$76=\"صناعة\")*(names!$D$6:$D$76=\"منازل\"))","v":5},10]
[null,null,null,null,"2\\1","2\\2","2\\3","2\\4","2\\5","2\\6",null,null,null,null,null,null,null,null,null,null,null,null,null,null,null,null,"2\\7"]
[null,null,null,null,{"$f":"COUNTIF(names!D6:D76,\"1\")","v":3},{"$f":"COUNTIF(names!D6:D76,\"2\")","v":4},{"$f":"COUNTIF(names!D6:D76,\"3\")","v":4},{"$f":"COUNTIF(names!D6:D76,\"4\")","v":2},{"$f":"COUNTIF(names!D6:D76,\"5\")","v":9},{"$f":"COUNTIF(names!D6:D76,\"6\")","v":19},null,null,null,null,null,null,null,null,null,null,null,null,null,null,null,null,{"$f":"COUNTIF(names!D6:D76,\"7\")","v":20}]
[]
[]
[]
[]
[124,{"$f":"IF(C101=\"\",\"\",#REF!+1)","v":{"$error":"#REF!"}},"كيرلس عاطف ذكي نعام",5,"فرنسي","صناعة","موسيقي","مستجد","علمي","مسيحي",null,null,null,null,null,null,null,null,null,null,null,null,null,null,null,null,{"$f":"IF(C101=\"\",\"\",INDEX($AK$6:$AK$25,MATCH(AB101,$AL$6:$AL$25,0)))","v":{"$error":"#REF!"}},{"$f":"IF(C101=\"\",\"\",IF(ISERROR(MATCH($B101,$AH:$AH,0)),#REF!,MAX($AB$5:$AB76)+1))","v":{"$error":"#REF!"}},{"$f":"IF(C101=\"\",\"\",INDEX($AM$6:$AM$25,MATCH(AB101,$AL$6:$AL$25,0)))","v":{"$error":"#REF!"}},{"$f":"IF(AND(C101<>\"\",COUNTIF($C$6:C101,C101)=1),COUNTIF($C$6:$C$101,C101),\"\")","v":1}]

{"sheet":"legan (2)","index":2,"n_rows":27,"n_cols":17,"rows_kept":27,"cut":false,"hidden":true,"merged":[[30,5,30,8],[1,2,1,3],[2,2,2,3],[3,2,3,8],[1,6,1,8],[2,6,2,8],[24,2,26,3]]}
[null,null,null,{"$f":"SUM(IF(ISNUMBER(FIND($M$3,names!$Y$6:$Y$76)),1,0))","v":7},"count"]
[null,null,"إدارة أسيوط التعليميـة",null,null,null,"الصـف الثانـي الثانـوي",null,null,null,null,null,"اسم المادة"]
[null,null,"مدرسة المشير الثانوية بنين",null,null,null,"امتحان الدور  الثاني 2019",null,null,null,null,null,"اللغة الثانية"]
[null,null,{"$f":"\"كشف باسماء الطلاب الممتحنين نظامي/ منازل \nفي مادة ( \"&$M$3&\"  ) \nالدور الثاني للعام الدراسي (2019 / 2018)\"","v":"كشف باسماء الطلاب الممتحنين نظامي/ منازل \nفي مادة ( اللغة الثانية  ) \nالدور الثاني للعام الدراسي (2019 / 2018)"}]
[null,null,null,null,null,null,null,null,null,null,null,null,null,null,null,null,"اللغة العربية"]
[null,null,null,null,"لجنة رقم","مقر اللجنة","العدد","الشعبة",null,null,null,null,null,null,null,null,"اللغة الانجليزية"]
[null,null,null,null,null,null,null,null,null,null,null,null,null,null,null,null,"اللغة الثانية"]
[null,null,"م","الاسم","رقم الجلوس","اللغة الثانية","الديانة","الحالة","ملاحظات",null,null,null,null,null,null,null,"الجبر"]
[null,null,{"$f":"IF(D9=\"\",\"\",MAX($C$8:C8)+1)","v":1},{"$f":"IF(ROWS($A$1:A1)>$D$1,\"\",INDEX(names!C$6:C$76,SMALL(IF(ISNUMBER(FIND($M$3,names!$Y$6:$Y$76)),ROW($Y$6:$Y$76)-ROW($Y$6)+1),ROWS($A$1:A1))))","v":"احمد عادل زكي موسي"},{"$f":"IF(ROWS($A$1:A1)>$D$1,\"\",INDEX(names!B$6:B$76,SMALL(IF(ISNUMBER(FIND($M$3,names!$Y$6:$Y$76)),ROW($Y$6:$Y$76)-ROW($Y$6)+1),ROWS($A$1:A1))))","v":115},{"$f":"IF(ROWS($A$1:A1)>$D$1,\"\",INDEX(names!E$6:E$76,SMALL(IF(ISNUMBER(FIND($M$3,names!$Y$6:$Y$76)),ROW($Y$6:$Y$76)-ROW($Y$6)+1),ROWS($A$1:A1))))","v":"فرنسي"},{"$f":"IF(ROWS($A$1:B1)>$D$1,\"\",INDEX(names!J$6:J$76,SMALL(IF(ISNUMBER(FIND($M$3,names!$Y$6:$Y$76)),ROW($Y$6:$Y$76)-ROW($Y$6)+1),ROWS($A$1:B1))))","v":"مسلم"},{"$f":"IF(ROWS($A$1:C1)>$D$1,\"\",INDEX(names!H$6:H$76,SMALL(IF(ISNUMBER(FIND($M$3,names!$Y$6:$Y$76)),ROW($Y$6:$Y$76)-ROW($Y$6)+1),ROWS($A$1:C1))))","v":"منازل"},null,null,null,null,null,null,null,null,"التفاضل وحساب المثلثات"]
[null,null,{"$f":"IF(D10=\"\",\"\",MAX($C$8:C9)+1)","v":2},{"$f":"IF(ROWS($A$1:A2)>$D$1,\"\",INDEX(names!C$6:C$76,SMALL(IF(ISNUMBER(FIND($M$3,names!$Y$6:$Y$76)),ROW($Y$6:$Y$76)-ROW($Y$6)+1),ROWS($A$1:A2))))","v":"احمد محمد سعيد احمد"},{"$f":"IF(ROWS($A$1:A2)>$D$1,\"\",INDEX(names!B$6:B$76,SMALL(IF(ISNUMBER(FIND($M$3,names!$Y$6:$Y$76)),ROW($Y$6:$Y$76)-ROW($Y$6)+1),ROWS($A$1:A2))))","v":123},{"$f":"IF(ROWS($A$1:A2)>$D$1,\"\",INDEX(names!E$6:E$76,SMALL(IF(ISNUMBER(FIND($M$3,names!$Y$6:$Y$76)),ROW($Y$6:$Y$76)-ROW($Y$6)+1),ROWS($A$1:A2))))","v":"الماني"},{"$f":"IF(ROWS($A$1:B2)>$D$1,\"\",INDEX(names!J$6:J$76,SMALL(IF(ISNUMBER(FIND($M$3,names!$Y$6:$Y$76)),ROW($Y$6:$Y$76)-ROW($Y$6)+1),ROWS($A$1:B2))))","v":"مسلم"},{"$f":"IF(ROWS($A$1:C2)>$D$1,\"\",INDEX(names!H$6:H$76,SMALL(IF(ISNUMBER(FIND($M$3,names!$Y$6:$Y$76)),ROW($Y$6:$Y$76)-ROW($Y$6)+1),ROWS($A$1:C2))))","v":"نظامي"},null,null,null,null,null,null,null,null,"الاحياء"]
[null,null,{"$f":"IF(D11=\"\",\"\",MAX($C$8:C10)+1)","v":3},{"$f":"IF(ROWS($A$1:A3)>$D$1,\"\",INDEX(names!C$6:C$76,SMALL(IF(ISNUMBER(FIND($M$3,names!$Y$6:$Y$76)),ROW($Y$6:$Y$76)-ROW($Y$6)+1),ROWS($A$1:A3))))","v":"عبد الحميد احمد عبد الحميد"},{"$f":"IF(ROWS($A$1:A3)>$D$1,\"\",INDEX(names!B$6:B$76,SMALL(IF(ISNUMBER(FIND($M$3,names!$Y$6:$Y$76)),ROW($Y$6:$Y$76)-ROW($Y$6)+1),ROWS($A$1:A3))))","v":171},{"$f":"IF(ROWS($A$1:A3)>$D$1,\"\",INDEX(names!E$6:E$76,SMALL(IF(ISNUMBER(FIND($M$3,names!$Y$6:$Y$76)),ROW($Y$6:$Y$76)-ROW($Y$6)+1),ROWS($A$1:A3))))","v":"فرنسي"},{"$f":"IF(ROWS($A$1:B3)>$D$1,\"\",INDEX(names!J$6:J$76,SMALL(IF(ISNUMBER(FIND($M$3,names!$Y$6:$Y$76)),ROW($Y$6:$Y$76)-ROW($Y$6)+1),ROWS($A$1:B3))))","v":"مسلم"},{"$f":"IF(ROWS($A$1:C3)>$D$1,\"\",INDEX(names!H$6:H$76,SMALL(IF(ISNUMBER(FIND($M$3,names!$Y$6:$Y$76)),ROW($Y$6:$Y$76)-ROW($Y$6)+1),ROWS($A$1:C3))))","v":"منازل"},null,null,null,null,null,null,null,null,"الكيمياء"]
[null,null,{"$f":"IF(D12=\"\",\"\",MAX($C$8:C11)+1)","v":4},{"$f":"IF(ROWS($A$1:A4)>$D$1,\"\",INDEX(names!C$6:C$76,SMALL(IF(ISNUMBER(FIND($M$3,names!$Y$6:$Y$76)),ROW($Y$6:$Y$76)-ROW($Y$6)+1),ROWS($A$1:A4))))","v":"فارس عمران احمد عبد الكافي"},{"$f":"IF(ROWS($A$1:A4)>$D$1,\"\",INDEX(names!B$6:B$76,SMALL(IF(ISNUMBER(FIND($M$3,names!$Y$6:$Y$76)),ROW($Y$6:$Y$76)-ROW($Y$6)+1),ROWS($A$1:A4))))","v":209},{"$f":"IF(ROWS($A$1:A4)>$D$1,\"\",INDEX(names!E$6:E$76,SMALL(IF(ISNUMBER(FIND($M$3,names!$Y$6:$Y$76)),ROW($Y$6:$Y$76)-ROW($Y$6)+1),ROWS($A$1:A4))))","v":"الماني"},{"$f":"IF(ROWS($A$1:B4)>$D$1,\"\",INDEX(names!J$6:J$76,SMALL(IF(ISNUMBER(FIND($M$3,names!$Y$6:$Y$76)),ROW($Y$6:$Y$76)-ROW($Y$6)+1),ROWS($A$1:B4))))","v":"مسلم"},{"$f":"IF(ROWS($A$1:C4)>$D$1,\"\",INDEX(names!H$6:H$76,SMALL(IF(ISNUMBER(FIND($M$3,names!$Y$6:$Y$76)),ROW($Y$6:$Y$76)-ROW($Y$6)+1),ROWS($A$1:C4))))","v":"منازل"},null,null,null,null,null,null,null,null,"الفيزياء"]
[null,null,{"$f":"IF(D13=\"\",\"\",MAX($C$8:C12)+1)","v":5},{"$f":"IF(ROWS($A$1:A5)>$D$1,\"\",INDEX(names!C$6:C$76,SMALL(IF(ISNUMBER(FIND($M$3,names!$Y$6:$Y$76)),ROW($Y$6:$Y$76)-ROW($Y$6)+1),ROWS($A$1:A5))))","v":"احمد ايمن ابراهيم محمد"},{"$f":"IF(ROWS($A$1:A5)>$D$1,\"\",INDEX(names!B$6:B$76,SMALL(IF(ISNUMBER(FIND($M$3,names!$Y$6:$Y$76)),ROW($Y$6:$Y$76)-ROW($Y$6)+1),ROWS($A$1:A5))))","v":311},{"$f":"IF(ROWS($A$1:A5)>$D$1,\"\",INDEX(names!E$6:E$76,SMALL(IF(ISNUMBER(FIND($M$3,names!$Y$6:$Y$76)),ROW($Y$6:$Y$76)-ROW($Y$6)+1),ROWS($A$1:A5))))","v":"فرنسي"},{"$f":"IF(ROWS($A$1:B5)>$D$1,\"\",INDEX(names!J$6:J$76,SMALL(IF(ISNUMBER(FIND($M$3,names!$Y$6:$Y$76)),ROW($Y$6:$Y$76)-ROW($Y$6)+1),ROWS($A$1:B5))))","v":"مسلم"},{"$f":"IF(ROWS($A$1:C5)>$D$1,\"\",INDEX(names!H$6:H$76,SMALL(IF(ISNUMBER(FIND($M$3,names!$Y$6:$Y$76)),ROW($Y$6:$Y$76)-ROW($Y$6)+1),ROWS($A$1:C5))))","v":"نظامي"},null,null,null,null,null,null,null,null,"الميكانيكا"]
[null,null,{"$f":"IF(D14=\"\",\"\",MAX($C$8:C13)+1)","v":6},{"$f":"IF(ROWS($A$1:A6)>$D$1,\"\",INDEX(names!C$6:C$76,SMALL(IF(ISNUMBER(FIND($M$3,names!$Y$6:$Y$76)),ROW($Y$6:$Y$76)-ROW($Y$6)+1),ROWS($A$1:A6))))","v":"احمد عبد القادر علي مصطفي"},{"$f":"IF(ROWS($A$1:A6)>$D$1,\"\",INDEX(names!B$6:B$76,SMALL(IF(ISNUMBER(FIND($M$3,names!$Y$6:$Y$76)),ROW($Y$6:$Y$76)-ROW($Y$6)+1),ROWS($A$1:A6))))","v":315},{"$f":"IF(ROWS($A$1:A6)>$D$1,\"\",INDEX(names!E$6:E$76,SMALL(IF(ISNUMBER(FIND($M$3,names!$Y$6:$Y$76)),ROW($Y$6:$Y$76)-ROW($Y$6)+1),ROWS($A$1:A6))))","v":"الماني"},{"$f":"IF(ROWS($A$1:B6)>$D$1,\"\",INDEX(names!J$6:J$76,SMALL(IF(ISNUMBER(FIND($M$3,names!$Y$6:$Y$76)),ROW($Y$6:$Y$76)-ROW($Y$6)+1),ROWS($A$1:B6))))","v":"مسلم"},{"$f":"IF(ROWS($A$1:C6)>$D$1,\"\",INDEX(names!H$6:H$76,SMALL(IF(ISNUMBER(FIND($M$3,names!$Y$6:$Y$76)),ROW($Y$6:$Y$76)-ROW($Y$6)+1),ROWS($A$1:C6))))","v":"منازل"},null,null,null,null,null,null,null,null,"التاريخ"]
[null,null,{"$f":"IF(D15=\"\",\"\",MAX($C$8:C14)+1)","v":7},{"$f":"IF(ROWS($A$1:A7)>$D$1,\"\",INDEX(names!C$6:C$76,SMALL(IF(ISNUMBER(FIND($M$3,names!$Y$6:$Y$76)),ROW($Y$6:$Y$76)-ROW($Y$6)+1),ROWS($A$1:A7))))","v":"احمد ناصر حمدون على"},{"$f":"IF(ROWS($A$1:A7)>$D$1,\"\",INDEX(names!B$6:B$76,SMALL(IF(ISNUMBER(FIND($M$3,names!$Y$6:$Y$76)),ROW($Y$6:$Y$76)-ROW($Y$6)+1),ROWS($A$1:A7))))","v":319},{"$f":"IF(ROWS($A$1:A7)>$D$1,\"\",INDEX(names!E$6:E$76,SMALL(IF(ISNUMBER(FIND($M$3,names!$Y$6:$Y$76)),ROW($Y$6:$Y$76)-ROW($Y$6)+1),ROWS($A$1:A7))))","v":"الماني"},{"$f":"IF(ROWS($A$1:B7)>$D$1,\"\",INDEX(names!J$6:J$76,SMALL(IF(ISNUMBER(FIND($M$3,names!$Y$6:$Y$76)),ROW($Y$6:$Y$76)-ROW($Y$6)+1),ROWS($A$1:B7))))","v":"مسلم"},{"$f":"IF(ROWS($A$1:C7)>$D$1,\"\",INDEX(names!H$6:H$76,SMALL(IF(ISNUMBER(FIND($M$3,names!$Y$6:$Y$76)),ROW($Y$6:$Y$76)-ROW($Y$6)+1),ROWS($A$1:C7))))","v":"نظامي"},null,null,null,null,null,null,null,null,"علم النفس"]
[null,null,{"$f":"IF(D16=\"\",\"\",MAX($C$8:C15)+1)","v":""},{"$f":"IF(ROWS($A$1:A8)>$D$1,\"\",INDEX(names!C$6:C$76,SMALL(IF(ISNUMBER(FIND($M$3,names!$Y$6:$Y$76)),ROW($Y$6:$Y$76)-ROW($Y$6)+1),ROWS($A$1:A8))))","v":""},{"$f":"IF(ROWS($A$1:A8)>$D$1,\"\",INDEX(names!B$6:B$76,SMALL(IF(ISNUMBER(FIND($M$3,names!$Y$6:$Y$76)),ROW($Y$6:$Y$76)-ROW($Y$6)+1),ROWS($A$1:A8))))","v":""},{"$f":"IF(ROWS($A$1:A8)>$D$1,\"\",INDEX(names!E$6:E$76,SMALL(IF(ISNUMBER(FIND($M$3,names!$Y$6:$Y$76)),ROW($Y$6:$Y$76)-ROW($Y$6)+1),ROWS($A$1:A8))))","v":""},{"$f":"IF(ROWS($A$1:B8)>$D$1,\"\",INDEX(names!J$6:J$76,SMALL(IF(ISNUMBER(FIND($M$3,names!$Y$6:$Y$76)),ROW($Y$6:$Y$76)-ROW($Y$6)+1),ROWS($A$1:B8))))","v":""},{"$f":"IF(ROWS($A$1:C8)>$D$1,\"\",INDEX(names!H$6:H$76,SMALL(IF(ISNUMBER(FIND($M$3,names!$Y$6:$Y$76)),ROW($Y$6:$Y$76)-ROW($Y$6)+1),ROWS($A$1:C8))))","v":""},null,null,null,null,null,null,null,null,"الجغرافيا"]
[null,null,{"$f":"IF(D17=\"\",\"\",MAX($C$8:C16)+1)","v":""},{"$f":"IF(ROWS($A$1:A9)>$D$1,\"\",INDEX(names!C$6:C$76,SMALL(IF(ISNUMBER(FIND($M$3,names!$Y$6:$Y$76)),ROW($Y$6:$Y$76)-ROW($Y$6)+1),ROWS($A$1:A9))))","v":""},{"$f":"IF(ROWS($A$1:A9)>$D$1,\"\",INDEX(names!B$6:B$76,SMALL(IF(ISNUMBER(FIND($M$3,names!$Y$6:$Y$76)),ROW($Y$6:$Y$76)-ROW($Y$6)+1),ROWS($A$1:A9))))","v":""},{"$f":"IF(ROWS($A$1:A9)>$D$1,\"\",INDEX(names!E$6:E$76,SMALL(IF(ISNUMBER(FIND($M$3,names!$Y$6:$Y$76)),ROW($Y$6:$Y$76)-ROW($Y$6)+1),ROWS($A$1:A9))))","v":""},{"$f":"IF(ROWS($A$1:B9)>$D$1,\"\",INDEX(names!J$6:J$76,SMALL(IF(ISNUMBER(FIND($M$3,names!$Y$6:$Y$76)),ROW($Y$6:$Y$76)-ROW($Y$6)+1),ROWS($A$1:B9))))","v":""},{"$f":"IF(ROWS($A$1:C9)>$D$1,\"\",INDEX(names!H$6:H$76,SMALL(IF(ISNUMBER(FIND($M$3,names!$Y$6:$Y$76)),ROW($Y$6:$Y$76)-ROW($Y$6)+1),ROWS($A$1:C9))))","v":""},null,null,null,null,null,null,null,null,"الفلسفة"]
[null,null,{"$f":"IF(D18=\"\",\"\",MAX($C$8:C17)+1)","v":""},{"$f":"IF(ROWS($A$1:A10)>$D$1,\"\",INDEX(names!C$6:C$76,SMALL(IF(ISNUMBER(FIND($M$3,names!$Y$6:$Y$76)),ROW($Y$6:$Y$76)-ROW($Y$6)+1),ROWS($A$1:A10))))","v":""},{"$f":"IF(ROWS($A$1:A10)>$D$1,\"\",INDEX(names!B$6:B$76,SMALL(IF(ISNUMBER(FIND($M$3,names!$Y$6:$Y$76)),ROW($Y$6:$Y$76)-ROW($Y$6)+1),ROWS($A$1:A10))))","v":""},{"$f":"IF(ROWS($A$1:A10)>$D$1,\"\",INDEX(names!E$6:E$76,SMALL(IF(ISNUMBER(FIND($M$3,names!$Y$6:$Y$76)),ROW($Y$6:$Y$76)-ROW($Y$6)+1),ROWS($A$1:A10))))","v":""},{"$f":"IF(ROWS($A$1:B10)>$D$1,\"\",INDEX(names!J$6:J$76,SMALL(IF(ISNUMBER(FIND($M$3,names!$Y$6:$Y$76)),ROW($Y$6:$Y$76)-ROW($Y$6)+1),ROWS($A$1:B10))))","v":""},{"$f":"IF(ROWS($A$1:C10)>$D$1,\"\",INDEX(names!H$6:H$76,SMALL(IF(ISNUMBER(FIND($M$3,names!$Y$6:$Y$76)),ROW($Y$6:$Y$76)-ROW($Y$6)+1),ROWS($A$1:C10))))","v":""},null,null,null,null,null,null,null,null,"تكنولوجيا الاتصالات"]
[null,null,{"$f":"IF(D19=\"\",\"\",MAX($C$8:C18)+1)","v":""},{"$f":"IF(ROWS($A$1:A11)>$D$1,\"\",INDEX(names!C$6:C$76,SMALL(IF(ISNUMBER(FIND($M$3,names!$Y$6:$Y$76)),ROW($Y$6:$Y$76)-ROW($Y$6)+1),ROWS($A$1:A11))))","v":""},{"$f":"IF(ROWS($A$1:A11)>$D$1,\"\",INDEX(names!B$6:B$76,SMALL(IF(ISNUMBER(FIND($M$3,names!$Y$6:$Y$76)),ROW($Y$6:$Y$76)-ROW($Y$6)+1),ROWS($A$1:A11))))","v":""},{"$f":"IF(ROWS($A$1:A11)>$D$1,\"\",INDEX(names!E$6:E$76,SMALL(IF(ISNUMBER(FIND($M$3,names!$Y$6:$Y$76)),ROW($Y$6:$Y$76)-ROW($Y$6)+1),ROWS($A$1:A11))))","v":""},{"$f":"IF(ROWS($A$1:B11)>$D$1,\"\",INDEX(names!J$6:J$76,SMALL(IF(ISNUMBER(FIND($M$3,names!$Y$6:$Y$76)),ROW($Y$6:$Y$76)-ROW($Y$6)+1),ROWS($A$1:B11))))","v":""},{"$f":"IF(ROWS($A$1:C11)>$D$1,\"\",INDEX(names!H$6:H$76,SMALL(IF(ISNUMBER(FIND($M$3,names!$Y$6:$Y$76)),ROW($Y$6:$Y$76)-ROW($Y$6)+1),ROWS($A$1:C11))))","v":""},null,null,null,null,null,null,null,null,"التربية الدينية"]
[null,null,{"$f":"IF(D20=\"\",\"\",MAX($C$8:C19)+1)","v":""},{"$f":"IF(ROWS($A$1:A12)>$D$1,\"\",INDEX(names!C$6:C$76,SMALL(IF(ISNUMBER(FIND($M$3,names!$Y$6:$Y$76)),ROW($Y$6:$Y$76)-ROW($Y$6)+1),ROWS($A$1:A12))))","v":""},{"$f":"IF(ROWS($A$1:A12)>$D$1,\"\",INDEX(names!B$6:B$76,SMALL(IF(ISNUMBER(FIND($M$3,names!$Y$6:$Y$76)),ROW($Y$6:$Y$76)-ROW($Y$6)+1),ROWS($A$1:A12))))","v":""},{"$f":"IF(ROWS($A$1:A12)>$D$1,\"\",INDEX(names!E$6:E$76,SMALL(IF(ISNUMBER(FIND($M$3,names!$Y$6:$Y$76)),ROW($Y$6:$Y$76)-ROW($Y$6)+1),ROWS($A$1:A12))))","v":""},{"$f":"IF(ROWS($A$1:B12)>$D$1,\"\",INDEX(names!J$6:J$76,SMALL(IF(ISNUMBER(FIND($M$3,names!$Y$6:$Y$76)),ROW($Y$6:$Y$76)-ROW($Y$6)+1),ROWS($A$1:B12))))","v":""},{"$f":"IF(ROWS($A$1:C12)>$D$1,\"\",INDEX(names!H$6:H$76,SMALL(IF(ISNUMBER(FIND($M$3,names!$Y$6:$Y$76)),ROW($Y$6:$Y$76)-ROW($Y$6)+1),ROWS($A$1:C12))))","v":""},null,null,null,null,null,null,null,null,"مواطنة وحقوق انسان"]
[null,null,{"$f":"IF(D21=\"\",\"\",MAX($C$8:C20)+1)","v":""},{"$f":"IF(ROWS($A$1:A13)>$D$1,\"\",INDEX(names!C$6:C$76,SMALL(IF(ISNUMBER(FIND($M$3,names!$Y$6:$Y$76)),ROW($Y$6:$Y$76)-ROW($Y$6)+1),ROWS($A$1:A13))))","v":""},{"$f":"IF(ROWS($A$1:A13)>$D$1,\"\",INDEX(names!B$6:B$76,SMALL(IF(ISNUMBER(FIND($M$3,names!$Y$6:$Y$76)),ROW($Y$6:$Y$76)-ROW($Y$6)+1),ROWS($A$1:A13))))","v":""},{"$f":"IF(ROWS($A$1:A13)>$D$1,\"\",INDEX(names!E$6:E$76,SMALL(IF(ISNUMBER(FIND($M$3,names!$Y$6:$Y$76)),ROW($Y$6:$Y$76)-ROW($Y$6)+1),ROWS($A$1:A13))))","v":""},{"$f":"IF(ROWS($A$1:B13)>$D$1,\"\",INDEX(names!J$6:J$76,SMALL(IF(ISNUMBER(FIND($M$3,names!$Y$6:$Y$76)),ROW($Y$6:$Y$76)-ROW($Y$6)+1),ROWS($A$1:B13))))","v":""},{"$f":"IF(ROWS($A$1:C13)>$D$1,\"\",INDEX(names!H$6:H$76,SMALL(IF(ISNUMBER(FIND($M$3,names!$Y$6:$Y$76)),ROW($Y$6:$Y$76)-ROW($Y$6)+1),ROWS($A$1:C13))))","v":""},null,null,null,null,null,null,null,null,"الانشطة التربوية"]
[null,null,{"$f":"IF(D22=\"\",\"\",MAX($C$8:C21)+1)","v":""},{"$f":"IF(ROWS($A$1:A14)>$D$1,\"\",INDEX(names!C$6:C$76,SMALL(IF(ISNUMBER(FIND($M$3,names!$Y$6:$Y$76)),ROW($Y$6:$Y$76)-ROW($Y$6)+1),ROWS($A$1:A14))))","v":""},{"$f":"IF(ROWS($A$1:A14)>$D$1,\"\",INDEX(names!B$6:B$76,SMALL(IF(ISNUMBER(FIND($M$3,names!$Y$6:$Y$76)),ROW($Y$6:$Y$76)-ROW($Y$6)+1),ROWS($A$1:A14))))","v":""},{"$f":"IF(ROWS($A$1:A14)>$D$1,\"\",INDEX(names!E$6:E$76,SMALL(IF(ISNUMBER(FIND($M$3,names!$Y$6:$Y$76)),ROW($Y$6:$Y$76)-ROW($Y$6)+1),ROWS($A$1:A14))))","v":""},{"$f":"IF(ROWS($A$1:B14)>$D$1,\"\",INDEX(names!J$6:J$76,SMALL(IF(ISNUMBER(FIND($M$3,names!$Y$6:$Y$76)),ROW($Y$6:$Y$76)-ROW($Y$6)+1),ROWS($A$1:B14))))","v":""},{"$f":"IF(ROWS($A$1:C14)>$D$1,\"\",INDEX(names!H$6:H$76,SMALL(IF(ISNUMBER(FIND($M$3,names!$Y$6:$Y$76)),ROW($Y$6:$Y$76)-ROW($Y$6)+1),ROWS($A$1:C14))))","v":""},null,null,null,null,null,null,null,null,"التربية المهنية"]
[null,null,{"$f":"IF(D23=\"\",\"\",MAX($C$8:C22)+1)","v":""},{"$f":"IF(ROWS($A$1:A15)>$D$1,\"\",INDEX(names!C$6:C$76,SMALL(IF(ISNUMBER(FIND($M$3,names!$Y$6:$Y$76)),ROW($Y$6:$Y$76)-ROW($Y$6)+1),ROWS($A$1:A15))))","v":""},{"$f":"IF(ROWS($A$1:A15)>$D$1,\"\",INDEX(names!B$6:B$76,SMALL(IF(ISNUMBER(FIND($M$3,names!$Y$6:$Y$76)),ROW($Y$6:$Y$76)-ROW($Y$6)+1),ROWS($A$1:A15))))","v":""},{"$f":"IF(ROWS($A$1:A15)>$D$1,\"\",INDEX(names!E$6:E$76,SMALL(IF(ISNUMBER(FIND($M$3,names!$Y$6:$Y$76)),ROW($Y$6:$Y$76)-ROW($Y$6)+1),ROWS($A$1:A15))))","v":""},{"$f":"IF(ROWS($A$1:B15)>$D$1,\"\",INDEX(names!J$6:J$76,SMALL(IF(ISNUMBER(FIND($M$3,names!$Y$6:$Y$76)),ROW($Y$6:$Y$76)-ROW($Y$6)+1),ROWS($A$1:B15))))","v":""},{"$f":"IF(ROWS($A$1:C15)>$D$1,\"\",INDEX(names!H$6:H$76,SMALL(IF(ISNUMBER(FIND($M$3,names!$Y$6:$Y$76)),ROW($Y$6:$Y$76)-ROW($Y$6)+1),ROWS($A$1:C15))))","v":""},null,null,null,null,null,null,null,null,"التربية الرياضية"]
[null,null,null,{"$f":"IF(ROWS($A$1:A16)>$D$1,\"\",INDEX(names!C$6:C$76,SMALL(IF(ISNUMBER(FIND($M$3,names!$Y$6:$Y$76)),ROW($Y$6:$Y$76)-ROW($Y$6)+1),ROWS($A$1:A16))))","v":""},null,null,null,null,"رئيس لجنة النظام"]
[null,null,"احصائية اللجنة",null,"فرنسي",{"$f":"COUNTIF(F9:F23,\"فرنسي\")","v":3},"الماني",{"$f":"COUNTIF(F9:F23,\"الماني\")","v":4}]
[null,null,null,null,"مسلم",{"$f":"COUNTIF(G9:G23,\"مسلم\")","v":7},"مسيحي",{"$f":"COUNTIF(G9:G23,\"مسيحي\")","v":0},"مدير ادارة المدرسة"]
[null,null,null,null,"نظامي",{"$f":"COUNTIF(H9:H23,\"نظامي\")","v":3},"منازل",{"$f":"COUNTIF(H9:H23,\"منازل\")","v":4}]

{"sheet":"Salim","index":3,"n_rows":27,"n_cols":17,"rows_kept":27,"cut":false,"hidden":false,"merged":[[30,5,30,8],[1,2,1,3],[1,6,1,8],[2,2,2,3],[2,6,2,8],[3,2,3,8],[24,2,26,3]]}
[null,null,null,15,"count"]
[null,null,"إدارة أسيوط التعليميـة",null,null,null,"الصـف الثانـي الثانـوي",null,null,null,null,null,"اسم المادة"]
[null,null,"مدرسة المشير الثانوية بنين",null,null,null,"امتحان الدور  الثاني 2019",null,null,null,null,null,"اللغة العربية"]
[null,null,{"$f":"\"كشف باسماء الطلاب الممتحنين نظامي/ منازل \nفي مادة ( \"&$M$3&\"  ) \nالدور الثاني للعام الدراسي (2019 / 2018)\"","v":"كشف باسماء الطلاب الممتحنين نظامي/ منازل \nفي مادة ( اللغة العربية  ) \nالدور الثاني للعام الدراسي (2019 / 2018)"}]
[null,null,null,null,null,null,null,null,null,null,null,null,null,null,null,null,"اللغة العربية"]
[null,null,null,null,"لجنة رقم","مقر اللجنة","العدد","الشعبة",null,null,null,null,null,null,null,null,"اللغة الانجليزية"]
[null,null,null,null,null,null,null,null,null,null,null,null,null,null,null,null,"اللغة الثانية"]
[null,null,"م","الاسم","رقم الجلوس","اللغة الثانية","الديانة","الحالة","ملاحظات",null,null,null,null,null,null,null,"الجبر"]
[null,null,2,"احمد عادل زكي موسي",115,"فرنسي","مسلم","منازل",null,null,null,null,null,null,null,null,"التفاضل وحساب المثلثات"]
[null,null,7,"بيتر جمال نصيف حنا",146,"فرنسي","مسيحي","نظامي",null,null,null,null,null,null,null,null,"الاحياء"]
[null,null,11,"عبد الحميد احمد عبد الحميد",171,"فرنسي","مسلم","منازل",null,null,null,null,null,null,null,null,"الكيمياء"]
[null,null,16,"عبد الوهاب ناصر محمد عبد الوهاب محمود",189,"الماني","مسلم","نظامي",null,null,null,null,null,null,null,null,"الفيزياء"]
[null,null,19,"فارس عمران احمد عبد الكافي",209,"الماني","مسلم","منازل",null,null,null,null,null,null,null,null,"الميكانيكا"]
[null,null,31,"احمد اشرف عبد التواب توفيق",310,"فرنسي","مسلم","نظامي",null,null,null,null,null,null,null,null,"التاريخ"]
[null,null,32,"احمد ايمن ابراهيم محمد",311,"فرنسي","مسلم","نظامي",null,null,null,null,null,null,null,null,"علم النفس"]
[null,null,40,"حسام الدين مصطفى عبد المالك عمر",329,"الماني","مسلم","نظامي",null,null,null,null,null,null,null,null,"الجغرافيا"]
[null,null,46,"عبد الرحمن محمود عبد الموجود احمد",341,"فرنسي","مسلم","نظامي",null,null,null,null,null,null,null,null,"الفلسفة"]
[null,null,49,"على عاطف على حسن",348,"فرنسي","مسلم","نظامي",null,null,null,null,null,null,null,null,"تكنولوجيا الاتصالات"]
[null,null,51,"كامل احمد كامل محمد",350,"فرنسي","مسلم","نظامي",null,null,null,null,null,null,null,null,"التربية الدينية"]
[null,null,53,"كريم عادل عبد اللطيف محمود",352,"الماني","مسلم","منازل",null,null,null,null,null,null,null,null,"مواطنة وحقوق انسان"]
[null,null,54,"كريم ياسر صديق محمد",353,"الماني","مسلم","نظامي",null,null,null,null,null,null,null,null,"الانشطة التربوية"]
[null,null,59,"محمد خالد محمد ياسين",362,"فرنسي","مسلم","نظامي",null,null,null,null,null,null,null,null,"التربية المهنية"]
[null,null,60,"محمد خميس محمد عبد المالك",363,"فرنسي","مسلم","نظامي",null,null,null,null,null,null,null,null,"التربية الرياضية"]
[null,null,null,{"$f":"IF(ROWS($A$1:A16)>$D$1,\"\",INDEX(names!C$6:C$76,SMALL(IF(ISNUMBER(FIND($M$3,names!$Y$6:$Y$76)),ROW($Y$6:$Y$76)-ROW($Y$6)+1),ROWS($A$1:A16))))","v":""},null,null,null,null,"رئيس لجنة النظام"]
[null,null,"احصائية اللجنة",null,"فرنسي",{"$f":"COUNTIF(F9:F23,\"فرنسي\")","v":10},"الماني",{"$f":"COUNTIF(F9:F23,\"الماني\")","v":5}]
[null,null,null,null,"مسلم",{"$f":"COUNTIF(G9:G23,\"مسلم\")","v":14},"مسيحي",{"$f":"COUNTIF(G9:G23,\"مسيحي\")","v":1},"مدير ادارة المدرسة"]
[null,null,null,null,"نظامي",{"$f":"COUNTIF(H9:H23,\"نظامي\")","v":11},"منازل",{"$f":"COUNTIF(H9:H23,\"منازل\")","v":4}]

{"sheet":"legan","index":4,"n_rows":27,"n_cols":20,"rows_kept":27,"cut":false,"hidden":true,"merged":[[31,5,31,9],[1,2,1,3],[1,7,1,9],[24,2,26,3],[30,5,30,9],[2,2,2,3],[2,7,2,9],[3,2,3,9]]}
[]
[null,null,"إدارة أسيوط التعليميـة",null,null,null,null,"الصـف الثانـي الثانـوي",null,null,null,null,null,"رقم اللجنة","من","إلى","العدد","المجموعة","رقم اللجنة","مقر اللجنة"]
[null,null,"مدرسة المشير الثانوية بنين",null,null,null,null,"امتحان الدور  الثاني 2019",null,null,null,null,null,1,{"$f":"IF(N3>names!AJ4,\"\",INDEX(names!$AH6:$AH$25,MATCH($N$3,names!$AL$6:$AL$76,0)))","v":110},{"$f":"IF(N3>names!AJ4,\"\",INDEX(names!$AI6:$AI$25,MATCH($N$3,names!$AL$6:$AL$76,0)))","v":186},{"$f":"IF(N3>names!AJ4,\"\",INDEX(names!$AJ6:$AJ$25,MATCH($N$3,names!$AL$6:$AL$76,0)))","v":15},{"$f":"IF(N3>names!AJ4,\"\",INDEX(names!$AK6:$AK$25,MATCH($N$3,names!$AL$6:$AL$76,0)))","v":"العلمية"},{"$f":"IF(N3>names!AJ4,\"\",INDEX(names!$AL6:$AL$25,MATCH($N$3,names!$AL$6:$AL$76,0)))","v":1},{"$f":"IF(N3>names!AJ4,\"\",INDEX(names!$AM6:$AM$25,MATCH($N$3,names!$AL$6:$AL$76,0)))","v":"1-1"}]
[null,null,{"$f":"IF(R3=\"العلمية\",\"المجموعة الاولي العلمية\",\"المجموعة الثانية الادبية\") &\"(\"& IF(R3=\"العلمية\",\"أحيــاء - كيميــاء - فيزياء - ميكانيكا\",\"فلسفة - تاريخ - علم نفس - جغرافيا\")&\")\"","v":"المجموعة الاولي العلمية(أحيــاء - كيميــاء - فيزياء - ميكانيكا)"}]
[]
[null,null,null,null,"لجنة رقم","مقر اللجنة","العدد","الشعبة",null,"ارقام الجلوس"]
[null,null,null,null,{"$f":"N3","v":1},{"$f":"T3","v":"1-1"},{"$f":"Q3","v":15},{"$f":"R3","v":"العلمية"},null,{"$f":"$O$3 & \":\"& $P$3","v":"110:186"}]
[null,null,"م","الاسم","رقم الجلوس","اللغة الثانية","الديانة","الحالة","مواد الرسوب","مواد رفع المجموع"]
[null,null,{"$f":"IF($N$3>names!$AJ$4,\"\",IF(ROW()-8<=$Q$3,ROW()-8,\"\"))","v":1},{"$f":"IF(C9=\"\",\"\",INDEX(names!$C6:$C$76,MATCH($N$3,names!$AB$6:$AB$76,0)))","v":"احمد جمال عبد المتعال احمد"},{"$f":"IF($N$3>names!$AJ$4,\"\",INDEX(names!$B6:$B$76,MATCH($N$3,names!$AB$6:$AB$76,0)))","v":110},{"$f":"IF(C9=\"\",\"\",INDEX(names!$E6:$E$76,MATCH($N$3,names!$AB$6:$AB$76,0)))","v":"فرنسي"},{"$f":"IF(C9=\"\",\"\",INDEX(names!$J6:$J$76,MATCH($N$3,names!$AB$6:$AB$76,0)))","v":"مسلم"},{"$f":"IF(C9=\"\",\"\",INDEX(names!$H6:$H$76,MATCH($N$3,names!$AB$6:$AB$76,0)))","v":"نظامي"},{"$f":"IF(C9=\"\",\"\",INDEX(names!$Y6:$Y$76,MATCH($N$3,names!$AB$6:$AB$76,0)))","v":",,,,,,,الكيمياء,,,,,,,"},{"$f":"IF(C9=\"\",\"\",INDEX(names!$Z6:$Z$76,MATCH($N$3,names!$AB$6:$AB$76,0)))","v":"عربي انجليزي فلسفة"}]
[null,null,{"$f":"IF($N$3>names!$AJ$4,\"\",IF(ROW()-8<=$Q$3,ROW()-8,\"\"))","v":2},{"$f":"IF(C10=\"\",\"\",INDEX(names!$C7:$C$76,MATCH($N$3,names!$AB$6:$AB$76,0)))","v":"احمد عادل زكي موسي"},{"$f":"IF($N$3>names!$AJ$4,\"\",INDEX(names!$B7:$B$76,MATCH($N$3,names!$AB$6:$AB$76,0)))","v":115},{"$f":"IF(C10=\"\",\"\",INDEX(names!$E7:$E$76,MATCH($N$3,names!$AB$6:$AB$76,0)))","v":"فرنسي"},{"$f":"IF(C10=\"\",\"\",INDEX(names!$J7:$J$76,MATCH($N$3,names!$AB$6:$AB$76,0)))","v":"مسلم"},{"$f":"IF(C10=\"\",\"\",INDEX(names!$H7:$H$76,MATCH($N$3,names!$AB$6:$AB$76,0)))","v":"منازل"},{"$f":"IF(C10=\"\",\"\",INDEX(names!$Y7:$Y$76,MATCH($N$3,names!$AB$6:$AB$76,0)))","v":"اللغة العربية,اللغة الانجليزية,اللغة الثانية,,التفاضل وحساب المثلثات,,الاحياء,الكيمياء,,الميكانيكا,المجموع الكلي,الحاسب الالي,التربية الدينية,,التربية المهنية"},{"$f":"IF(C10=\"\",\"\",INDEX(names!$Z7:$Z$76,MATCH($N$3,names!$AB$6:$AB$76,0)))","v":0}]
[null,null,{"$f":"IF($N$3>names!$AJ$4,\"\",IF(ROW()-8<=$Q$3,ROW()-8,\"\"))","v":3},{"$f":"IF(C11=\"\",\"\",INDEX(names!$C8:$C$76,MATCH($N$3,names!$AB$6:$AB$76,0)))","v":"احمد محمد سعيد احمد"},{"$f":"IF($N$3>names!$AJ$4,\"\",INDEX(names!$B8:$B$76,MATCH($N$3,names!$AB$6:$AB$76,0)))","v":123},{"$f":"IF(C11=\"\",\"\",INDEX(names!$E8:$E$76,MATCH($N$3,names!$AB$6:$AB$76,0)))","v":"الماني"},{"$f":"IF(C11=\"\",\"\",INDEX(names!$J8:$J$76,MATCH($N$3,names!$AB$6:$AB$76,0)))","v":"مسلم"},{"$f":"IF(C11=\"\",\"\",INDEX(names!$H8:$H$76,MATCH($N$3,names!$AB$6:$AB$76,0)))","v":"نظامي"},{"$f":"IF(C11=\"\",\"\",INDEX(names!$Y8:$Y$76,MATCH($N$3,names!$AB$6:$AB$76,0)))","v":",,اللغة الثانية,,,,,الكيمياء,الفيزياء,الميكانيكا,المجموع الكلي,,,,"},{"$f":"IF(C11=\"\",\"\",INDEX(names!$Z8:$Z$76,MATCH($N$3,names!$AB$6:$AB$76,0)))","v":0}]
[null,null,{"$f":"IF($N$3>names!$AJ$4,\"\",IF(ROW()-8<=$Q$3,ROW()-8,\"\"))","v":4},{"$f":"IF(C12=\"\",\"\",INDEX(names!$C9:$C$76,MATCH($N$3,names!$AB$6:$AB$76,0)))","v":"احمد محمد علي عثمان"},{"$f":"IF($N$3>names!$AJ$4,\"\",INDEX(names!$B9:$B$76,MATCH($N$3,names!$AB$6:$AB$76,0)))","v":125},{"$f":"IF(C12=\"\",\"\",INDEX(names!$E9:$E$76,MATCH($N$3,names!$AB$6:$AB$76,0)))","v":"الماني"},{"$f":"IF(C12=\"\",\"\",INDEX(names!$J9:$J$76,MATCH($N$3,names!$AB$6:$AB$76,0)))","v":"مسلم"},{"$f":"IF(C12=\"\",\"\",INDEX(names!$H9:$H$76,MATCH($N$3,names!$AB$6:$AB$76,0)))","v":"نظامي"},{"$f":"IF(C12=\"\",\"\",INDEX(names!$Y9:$Y$76,MATCH($N$3,names!$AB$6:$AB$76,0)))","v":",,,,,,,,,,,,,المواطنة وحقوق الانسان,"},{"$f":"IF(C12=\"\",\"\",INDEX(names!$Z9:$Z$76,MATCH($N$3,names!$AB$6:$AB$76,0)))","v":0}]
[null,null,{"$f":"IF($N$3>names!$AJ$4,\"\",IF(ROW()-8<=$Q$3,ROW()-8,\"\"))","v":5},{"$f":"IF(C13=\"\",\"\",INDEX(names!$C10:$C$76,MATCH($N$3,names!$AB$6:$AB$76,0)))","v":"اسلام محمود خميس محمود"},{"$f":"IF($N$3>names!$AJ$4,\"\",INDEX(names!$B10:$B$76,MATCH($N$3,names!$AB$6:$AB$76,0)))","v":136},{"$f":"IF(C13=\"\",\"\",INDEX(names!$E10:$E$76,MATCH($N$3,names!$AB$6:$AB$76,0)))","v":"فرنسي"},{"$f":"IF(C13=\"\",\"\",INDEX(names!$J10:$J$76,MATCH($N$3,names!$AB$6:$AB$76,0)))","v":"مسلم"},{"$f":"IF(C13=\"\",\"\",INDEX(names!$H10:$H$76,MATCH($N$3,names!$AB$6:$AB$76,0)))","v":"نظامي"},{"$f":"IF(C13=\"\",\"\",INDEX(names!$Y10:$Y$76,MATCH($N$3,names!$AB$6:$AB$76,0)))","v":",اللغة الانجليزية,,,التفاضل وحساب المثلثات,,,,,,,,,,"},{"$f":"IF(C13=\"\",\"\",INDEX(names!$Z10:$Z$76,MATCH($N$3,names!$AB$6:$AB$76,0)))","v":0}]
[null,null,{"$f":"IF($N$3>names!$AJ$4,\"\",IF(ROW()-8<=$Q$3,ROW()-8,\"\"))","v":6},{"$f":"IF(C14=\"\",\"\",INDEX(names!$C11:$C$76,MATCH($N$3,names!$AB$6:$AB$76,0)))","v":"السيد عثمان سيد حسين"},{"$f":"IF($N$3>names!$AJ$4,\"\",INDEX(names!$B11:$B$76,MATCH($N$3,names!$AB$6:$AB$76,0)))","v":138},{"$f":"IF(C14=\"\",\"\",INDEX(names!$E11:$E$76,MATCH($N$3,names!$AB$6:$AB$76,0)))","v":"فرنسي"},{"$f":"IF(C14=\"\",\"\",INDEX(names!$J11:$J$76,MATCH($N$3,names!$AB$6:$AB$76,0)))","v":"مسلم"},{"$f":"IF(C14=\"\",\"\",INDEX(names!$H11:$H$76,MATCH($N$3,names!$AB$6:$AB$76,0)))","v":"نظامي"},{"$f":"IF(C14=\"\",\"\",INDEX(names!$Y11:$Y$76,MATCH($N$3,names!$AB$6:$AB$76,0)))","v":",اللغة الانجليزية,,,,,,,الفيزياء,,,,,,"},{"$f":"IF(C14=\"\",\"\",INDEX(names!$Z11:$Z$76,MATCH($N$3,names!$AB$6:$AB$76,0)))","v":0}]
[null,null,{"$f":"IF($N$3>names!$AJ$4,\"\",IF(ROW()-8<=$Q$3,ROW()-8,\"\"))","v":7},{"$f":"IF(C15=\"\",\"\",INDEX(names!$C12:$C$76,MATCH($N$3,names!$AB$6:$AB$76,0)))","v":"بيتر جمال نصيف حنا"},{"$f":"IF($N$3>names!$AJ$4,\"\",INDEX(names!$B12:$B$76,MATCH($N$3,names!$AB$6:$AB$76,0)))","v":146},{"$f":"IF(C15=\"\",\"\",INDEX(names!$E12:$E$76,MATCH($N$3,names!$AB$6:$AB$76,0)))","v":"فرنسي"},{"$f":"IF(C15=\"\",\"\",INDEX(names!$J12:$J$76,MATCH($N$3,names!$AB$6:$AB$76,0)))","v":"مسيحي"},{"$f":"IF(C15=\"\",\"\",INDEX(names!$H12:$H$76,MATCH($N$3,names!$AB$6:$AB$76,0)))","v":"نظامي"},{"$f":"IF(C15=\"\",\"\",INDEX(names!$Y12:$Y$76,MATCH($N$3,names!$AB$6:$AB$76,0)))","v":"اللغة العربية,,,,,,,الكيمياء,,,المجموع الكلي,,,,"},{"$f":"IF(C15=\"\",\"\",INDEX(names!$Z12:$Z$76,MATCH($N$3,names!$AB$6:$AB$76,0)))","v":0}]
[null,null,{"$f":"IF($N$3>names!$AJ$4,\"\",IF(ROW()-8<=$Q$3,ROW()-8,\"\"))","v":8},{"$f":"IF(C16=\"\",\"\",INDEX(names!$C13:$C$76,MATCH($N$3,names!$AB$6:$AB$76,0)))","v":"بيشوي عصام كمال لمعي"},{"$f":"IF($N$3>names!$AJ$4,\"\",INDEX(names!$B13:$B$76,MATCH($N$3,names!$AB$6:$AB$76,0)))","v":152},{"$f":"IF(C16=\"\",\"\",INDEX(names!$E13:$E$76,MATCH($N$3,names!$AB$6:$AB$76,0)))","v":"فرنسي"},{"$f":"IF(C16=\"\",\"\",INDEX(names!$J13:$J$76,MATCH($N$3,names!$AB$6:$AB$76,0)))","v":"مسيحي"},{"$f":"IF(C16=\"\",\"\",INDEX(names!$H13:$H$76,MATCH($N$3,names!$AB$6:$AB$76,0)))","v":"نظامي"},{"$f":"IF(C16=\"\",\"\",INDEX(names!$Y13:$Y$76,MATCH($N$3,names!$AB$6:$AB$76,0)))","v":",,,,التفاضل وحساب المثلثات,,,الكيمياء,,,المجموع الكلي,,,,"},{"$f":"IF(C16=\"\",\"\",INDEX(names!$Z13:$Z$76,MATCH($N$3,names!$AB$6:$AB$76,0)))","v":0}]
[null,null,{"$f":"IF($N$3>names!$AJ$4,\"\",IF(ROW()-8<=$Q$3,ROW()-8,\"\"))","v":9},{"$f":"IF(C17=\"\",\"\",INDEX(names!$C14:$C$76,MATCH($N$3,names!$AB$6:$AB$76,0)))","v":"حمزه عبد الاعلى عبد النبى عمر"},{"$f":"IF($N$3>names!$AJ$4,\"\",INDEX(names!$B14:$B$76,MATCH($N$3,names!$AB$6:$AB$76,0)))","v":157},{"$f":"IF(C17=\"\",\"\",INDEX(names!$E14:$E$76,MATCH($N$3,names!$AB$6:$AB$76,0)))","v":"الماني"},{"$f":"IF(C17=\"\",\"\",INDEX(names!$J14:$J$76,MATCH($N$3,names!$AB$6:$AB$76,0)))","v":"مسلم"},{"$f":"IF(C17=\"\",\"\",INDEX(names!$H14:$H$76,MATCH($N$3,names!$AB$6:$AB$76,0)))","v":"نظامي"},{"$f":"IF(C17=\"\",\"\",INDEX(names!$Y14:$Y$76,MATCH($N$3,names!$AB$6:$AB$76,0)))","v":",,,,التفاضل وحساب المثلثات,,,,,,,,,,"},{"$f":"IF(C17=\"\",\"\",INDEX(names!$Z14:$Z$76,MATCH($N$3,names!$AB$6:$AB$76,0)))","v":0}]
[null,null,{"$f":"IF($N$3>names!$AJ$4,\"\",IF(ROW()-8<=$Q$3,ROW()-8,\"\"))","v":10},{"$f":"IF(C18=\"\",\"\",INDEX(names!$C15:$C$76,MATCH($N$3,names!$AB$6:$AB$76,0)))","v":"رومانى كراس مينا منصور"},{"$f":"IF($N$3>names!$AJ$4,\"\",INDEX(names!$B15:$B$76,MATCH($N$3,names!$AB$6:$AB$76,0)))","v":159},{"$f":"IF(C18=\"\",\"\",INDEX(names!$E15:$E$76,MATCH($N$3,names!$AB$6:$AB$76,0)))","v":"الماني"},{"$f":"IF(C18=\"\",\"\",INDEX(names!$J15:$J$76,MATCH($N$3,names!$AB$6:$AB$76,0)))","v":"مسيحي"},{"$f":"IF(C18=\"\",\"\",INDEX(names!$H15:$H$76,MATCH($N$3,names!$AB$6:$AB$76,0)))","v":"نظامي"},{"$f":"IF(C18=\"\",\"\",INDEX(names!$Y15:$Y$76,MATCH($N$3,names!$AB$6:$AB$76,0)))","v":",اللغة الانجليزية,,,,,,,,,,,,,"},{"$f":"IF(C18=\"\",\"\",INDEX(names!$Z15:$Z$76,MATCH($N$3,names!$AB$6:$AB$76,0)))","v":0}]
[null,null,{"$f":"IF($N$3>names!$AJ$4,\"\",IF(ROW()-8<=$Q$3,ROW()-8,\"\"))","v":11},{"$f":"IF(C19=\"\",\"\",INDEX(names!$C16:$C$76,MATCH($N$3,names!$AB$6:$AB$76,0)))","v":"عبد الحميد احمد عبد الحميد"},{"$f":"IF($N$3>names!$AJ$4,\"\",INDEX(names!$B16:$B$76,MATCH($N$3,names!$AB$6:$AB$76,0)))","v":171},{"$f":"IF(C19=\"\",\"\",INDEX(names!$E16:$E$76,MATCH($N$3,names!$AB$6:$AB$76,0)))","v":"فرنسي"},{"$f":"IF(C19=\"\",\"\",INDEX(names!$J16:$J$76,MATCH($N$3,names!$AB$6:$AB$76,0)))","v":"مسلم"},{"$f":"IF(C19=\"\",\"\",INDEX(names!$H16:$H$76,MATCH($N$3,names!$AB$6:$AB$76,0)))","v":"منازل"},{"$f":"IF(C19=\"\",\"\",INDEX(names!$Y16:$Y$76,MATCH($N$3,names!$AB$6:$AB$76,0)))","v":"اللغة العربية,اللغة الانجليزية,اللغة الثانية,الجبر,التفاضل وحساب المثلثات,,الاحياء,الكيمياء,الفيزياء,الميكانيكا,المجموع الكلي,الحاسب الالي,التربية الدينية,المواطنة وحقوق الانسان,التربية المهنية"},{"$f":"IF(C19=\"\",\"\",INDEX(names!$Z16:$Z$76,MATCH($N$3,names!$AB$6:$AB$76,0)))","v":0}]
[null,null,{"$f":"IF($N$3>names!$AJ$4,\"\",IF(ROW()-8<=$Q$3,ROW()-8,\"\"))","v":12},{"$f":"IF(C20=\"\",\"\",INDEX(names!$C17:$C$76,MATCH($N$3,names!$AB$6:$AB$76,0)))","v":"عبد الرحمن جابر مصطفى عليان"},{"$f":"IF($N$3>names!$AJ$4,\"\",INDEX(names!$B17:$B$76,MATCH($N$3,names!$AB$6:$AB$76,0)))","v":174},{"$f":"IF(C20=\"\",\"\",INDEX(names!$E17:$E$76,MATCH($N$3,names!$AB$6:$AB$76,0)))","v":"فرنسي"},{"$f":"IF(C20=\"\",\"\",INDEX(names!$J17:$J$76,MATCH($N$3,names!$AB$6:$AB$76,0)))","v":"مسلم"},{"$f":"IF(C20=\"\",\"\",INDEX(names!$H17:$H$76,MATCH($N$3,names!$AB$6:$AB$76,0)))","v":"نظامي"},{"$f":"IF(C20=\"\",\"\",INDEX(names!$Y17:$Y$76,MATCH($N$3,names!$AB$6:$AB$76,0)))","v":",,,,,,,الكيمياء,,,المجموع الكلي,,,,"},{"$f":"IF(C20=\"\",\"\",INDEX(names!$Z17:$Z$76,MATCH($N$3,names!$AB$6:$AB$76,0)))","v":0}]
[null,null,{"$f":"IF($N$3>names!$AJ$4,\"\",IF(ROW()-8<=$Q$3,ROW()-8,\"\"))","v":13},{"$f":"IF(C21=\"\",\"\",INDEX(names!$C18:$C$76,MATCH($N$3,names!$AB$6:$AB$76,0)))","v":"عبد الرحمن صابر توفيق عبد السلام"},{"$f":"IF($N$3>names!$AJ$4,\"\",INDEX(names!$B18:$B$76,MATCH($N$3,names!$AB$6:$AB$76,0)))","v":177},{"$f":"IF(C21=\"\",\"\",INDEX(names!$E18:$E$76,MATCH($N$3,names!$AB$6:$AB$76,0)))","v":"فرنسي"},{"$f":"IF(C21=\"\",\"\",INDEX(names!$J18:$J$76,MATCH($N$3,names!$AB$6:$AB$76,0)))","v":"مسلم"},{"$f":"IF(C21=\"\",\"\",INDEX(names!$H18:$H$76,MATCH($N$3,names!$AB$6:$AB$76,0)))","v":"نظامي"},{"$f":"IF(C21=\"\",\"\",INDEX(names!$Y18:$Y$76,MATCH($N$3,names!$AB$6:$AB$76,0)))","v":",,,الجبر,التفاضل وحساب المثلثات,,,,,,,,,,"},{"$f":"IF(C21=\"\",\"\",INDEX(names!$Z18:$Z$76,MATCH($N$3,names!$AB$6:$AB$76,0)))","v":0}]
[null,null,{"$f":"IF($N$3>names!$AJ$4,\"\",IF(ROW()-8<=$Q$3,ROW()-8,\"\"))","v":14},{"$f":"IF(C22=\"\",\"\",INDEX(names!$C19:$C$76,MATCH($N$3,names!$AB$6:$AB$76,0)))","v":"عبد الرحمن محمد عبد الرحمن فراج"},{"$f":"IF($N$3>names!$AJ$4,\"\",INDEX(names!$B19:$B$76,MATCH($N$3,names!$AB$6:$AB$76,0)))","v":180},{"$f":"IF(C22=\"\",\"\",INDEX(names!$E19:$E$76,MATCH($N$3,names!$AB$6:$AB$76,0)))","v":"الماني"},{"$f":"IF(C22=\"\",\"\",INDEX(names!$J19:$J$76,MATCH($N$3,names!$AB$6:$AB$76,0)))","v":"مسلم"},{"$f":"IF(C22=\"\",\"\",INDEX(names!$H19:$H$76,MATCH($N$3,names!$AB$6:$AB$76,0)))","v":"نظامي"},{"$f":"IF(C22=\"\",\"\",INDEX(names!$Y19:$Y$76,MATCH($N$3,names!$AB$6:$AB$76,0)))","v":",,,,,,,,,,المجموع الكلي,,,,"},{"$f":"IF(C22=\"\",\"\",INDEX(names!$Z19:$Z$76,MATCH($N$3,names!$AB$6:$AB$76,0)))","v":0}]
[null,null,{"$f":"IF($N$3>names!$AJ$4,\"\",IF(ROW()-8<=$Q$3,ROW()-8,\"\"))","v":15},{"$f":"IF(C23=\"\",\"\",INDEX(names!$C20:$C$76,MATCH($N$3,names!$AB$6:$AB$76,0)))","v":"عبد الرحيم اشرف عبد الرحيم احمد"},{"$f":"IF($N$3>names!$AJ$4,\"\",INDEX(names!$B20:$B$76,MATCH($N$3,names!$AB$6:$AB$76,0)))","v":186},{"$f":"IF(C23=\"\",\"\",INDEX(names!$E20:$E$76,MATCH($N$3,names!$AB$6:$AB$76,0)))","v":"الماني"},{"$f":"IF(C23=\"\",\"\",INDEX(names!$J20:$J$76,MATCH($N$3,names!$AB$6:$AB$76,0)))","v":"مسلم"},{"$f":"IF(C23=\"\",\"\",INDEX(names!$H20:$H$76,MATCH($N$3,names!$AB$6:$AB$76,0)))","v":"نظامي"},{"$f":"IF(C23=\"\",\"\",INDEX(names!$Y20:$Y$76,MATCH($N$3,names!$AB$6:$AB$76,0)))","v":",,,الجبر,,,,,,,,,,,"},{"$f":"IF(C23=\"\",\"\",INDEX(names!$Z20:$Z$76,MATCH($N$3,names!$AB$6:$AB$76,0)))","v":0}]
[]
[null,null,"احصائية اللجنة",null,"فرنسي",{"$f":"COUNTIF(F9:F23,\"فرنسي\")","v":9},"الماني",{"$f":"COUNTIF(F9:F23,\"الماني\")","v":6},"رئيس لجنة النظام والمراقبة","سامية حسانين محمد"]
[null,null,null,null,"مسلم",{"$f":"COUNTIF(G9:G23,\"مسلم\")","v":12},"مسيحي",{"$f":"COUNTIF(G9:G23,\"مسيحي\")","v":3},"***********"]
[null,null,null,null,"نظامي",{"$f":"COUNTIF(H9:H23,\"نظامي\")","v":13},"منازل",{"$f":"COUNTIF(H9:H23,\"منازل\")","v":2},"مدير ادارة المدرسة","سحر عبد الرحمن فرغلي"]